{"text_format":"1","workbook":"xlsx","n_sheets":1,"sheets":["الشاحنات"],"not_rendered":{"charts":0,"images":0,"macros":1,"external_links":1,"defined_names":7,"comments":0,"pivot_tables":0},"unopened":[],"bounds":{"document_bytes":16777216,"sheet_cells":100000,"rows_first":2000,"rows_last":500,"rows_between":2000,"halvings":0,"cell_chars":16384,"cell_head_chars":4096},"cells_cut":0,"cells_raw":0,"read":"whole","date_system":"1900"}

{"sheet":"الشاحنات","index":0,"n_rows":52,"n_cols":55,"rows_kept":52,"cut":false,"hidden":false,"merged":[[0,0,0,41]]}
["الشاحنات"]
["م","الكود","وصف الأصل","الماركة","الموديل","اللون","المالك","رقم اللوحة","رقم الشاسية/الهيكل","الرقم التسلسلي","نوع الترخيص","تاريخ انتهاء الفحص (هجري)","تاريخ انتهاء الفحص (ميلادي)","حالة الفحص الدوري","تاريخ انتهاء رخصة السير(هجري)","تاريخ انتهاء رخصة السير(ميلادي)","حالة رخص السير","تاريخ انتهاء كارت التشغيل (هجري)","تاريخ انتهاء كارت التشغيل (ميلادي)","حالة كارت التشغيل","تاريخ انتهاء التأمين (هجري)","تاريخ انتهاء التأمين (ميلادي)","حالة التأمين","اسم المفوض بالاستخدام","الجنسية","تاريخ انتهاء التفويض (هجري)","تاريخ انتهاء التفويض (ميلادي)","حالة التفويض","رقم الإقامة","انتهاء رخصة القيادة (هجري)","انتهاء رخصة القيادة (ميلادي)","حالة رخصة القيادة","رقم الجوال","جهاز التتبع","الحمولة","حساس الوزن","الموقع","ملاحظات","الاعطال","حالة السائق","محضر تسليم ورقي","اصل الاستمارة","المدة المتبقية على انتهاء الفحص","المدة المتبقية على انتهاء رخصة السير","المدة المتبقية على انتهاء كارت التشغيل","المدة المتبيقة على انتهاء التامين","المدة المتبقية على انتهاء رخصة القيادة","المدة المتبقية على انتهاء التفويض",null,"تاريخ اليوم",{"$f":"TODAY()","v":"2022-10-11"},null,"رخصة القيادة",null,"جهاز التتبع"]
[{"$f":"IF(B3=\"\",\"\",SUBTOTAL(3,$B$3:B3))","v":1},"KH9","خلاطة اسمنت","Mercedes",2005,"أبيض",7009429445,"ا ق ي  8525","WDB9333041K989822",658186010,"نقل خاص","29/05/1441",{"$f":"IFERROR(ConvertDate(Truck_New18[[#This Row],[تاريخ انتهاء الفحص (هجري)]]),\"\")","v":"24/01/2020"},{"$f":"IF(Truck_New18[[#This Row],[المدة المتبقية على انتهاء الفحص]]<1,\"منتهي\",IF(Truck_New18[[#This Row],[المدة المتبقية على انتهاء الفحص]]<30,\"تجديد\",IF(Truck_New18[[#This Row],[المدة المتبقية على انتهاء الفحص]]=\"\",\"\",\"😁\")))","v":"منتهي"},"11/06/1444",{"$f":"IFERROR(ConvertDate(Truck_New18[[#This Row],[تاريخ انتهاء رخصة السير(هجري)]]),\"\")","v":"03/01/2023"},{"$f":"IF(Truck_New18[[#This Row],[المدة المتبقية على انتهاء رخصة السير]]<1,\"منتهي\",IF(Truck_New18[[#This Row],[المدة المتبقية على انتهاء رخصة السير]]<30,\"تجديد\",IF(Truck_New18[[#This Row],[المدة المتبقية على انتهاء رخصة السير]]=\"\",\"\",\"😁\")))","v":"😁"},"11/06/1438",{"$f":"IFERROR(ConvertDate(Truck_New18[[#This Row],[تاريخ انتهاء كارت التشغيل (هجري)]]),\"\")","v":"09/03/2017"},{"$f":"IF(Truck_New18[[#This Row],[المدة المتبقية على انتهاء كارت التشغيل]]<1,\"منتهي\",IF(Truck_New18[[#This Row],[المدة المتبقية على انتهاء كارت التشغيل]]<30,\"تجديد\",IF(Truck_New18[[#This Row],[المدة المتبقية على انتهاء كارت التشغيل]]=\"\",\"\",\"😁\")))","v":"منتهي"},{"$f":"Truck_New18[[#This Row],[تاريخ انتهاء التأمين (ميلادي)]]","v":"2023-02-08"},"2023-02-08",{"$f":"IFERROR(IF(Truck_New18[[#This Row],[المدة المتبيقة على انتهاء التامين]]<1,\"منتهي\",IF(Truck_New18[[#This Row],[المدة المتبيقة على انتهاء التامين]]<30,\"تجديد\",\"👌\")),\"\")","v":"👌"},null,null,null,{"$f":"IFERROR(ConvertDate(Truck_New18[[#This Row],[تاريخ انتهاء التفويض (هجري)]]),\"\")","v":""},{"$f":"IF(Truck_New18[[#This Row],[المدة المتبقية على انتهاء التفويض]]<1,\"منتهي\",IF(Truck_New18[[#This Row],[المدة المتبقية على انتهاء التفويض]]<30,\"تجديد\",IF(Truck_New18[[#This Row],[المدة المتبقية على انتهاء التفويض]]=\"\",\"\",\"😁\")))","v":""},null,null,{"$f":"IFERROR(ConvertDate(Truck_New18[[#This Row],[انتهاء رخصة القيادة (هجري)]]),\"\")","v":""},{"$f":"IFERROR(IF(Truck_New18[[#This Row],[المدة المتبقية على انتهاء رخصة القيادة]]<1,\"منتهي\",IF(Truck_New18[[#This Row],[المدة المتبقية على انتهاء رخصة القيادة]]<30,\"تجديد\",\"😁\")),\"\")","v":"منتهي"},null,null,null,null,null,null,null,null,null,"√",{"$f":"IFERROR(Truck_New18[[#This Row],[تاريخ انتهاء الفحص (ميلادي)]]-TODAY(),\"\")","v":-991},{"$f":"IFERROR(Truck_New18[[#This Row],[تاريخ انتهاء رخصة السير(ميلادي)]]-TODAY(),\"\")","v":84},{"$f":"IFERROR(Truck_New18[[#This Row],[تاريخ انتهاء كارت التشغيل (ميلادي)]]-TODAY(),\"\")","v":-2042},{"$f":"IFERROR(Truck_New18[[#This Row],[تاريخ انتهاء التأمين (ميلادي)]]-TODAY(),\"\")","v":120},{"$f":"IFERROR(Truck_New18[[#This Row],[انتهاء رخصة القيادة (هجري)]]-TODAY(),\"\")","v":-44845},{"$f":"IFERROR(Truck_New18[[#This Row],[تاريخ انتهاء التفويض (ميلادي)]]-TODAY(),\"\")","v":""}]
[{"$f":"IF(B4=\"\",\"\",SUBTOTAL(3,$B$3:B4))","v":2},"KH10","خلاطة اسمنت","Mercedes",2007,"فضي",7009429445,"ا ق ي  8856","WDB9333041L154162",232307010,"نقل خاص","10/08/1443",{"$f":"IFERROR(ConvertDate(Truck_New18[[#This Row],[تاريخ انتهاء الفحص (هجري)]]),\"\")","v":"13/03/2022"},{"$f":"IF(Truck_New18[[#This Row],[المدة المتبقية على انتهاء الفحص]]<1,\"منتهي\",IF(Truck_New18[[#This Row],[المدة المتبقية على انتهاء الفحص]]<30,\"تجديد\",IF(Truck_New18[[#This Row],[المدة المتبقية على انتهاء الفحص]]=\"\",\"\",\"😁\")))","v":"منتهي"},"20/06/1444",{"$f":"IFERROR(ConvertDate(Truck_New18[[#This Row],[تاريخ انتهاء رخصة السير(هجري)]]),\"\")","v":"12/01/2023"},{"$f":"IF(Truck_New18[[#This Row],[المدة المتبقية على انتهاء رخصة السير]]<1,\"منتهي\",IF(Truck_New18[[#This Row],[المدة المتبقية على انتهاء رخصة السير]]<30,\"تجديد\",IF(Truck_New18[[#This Row],[المدة المتبقية على انتهاء رخصة السير]]=\"\",\"\",\"😁\")))","v":"😁"},"20/06/1438",{"$f":"IFERROR(ConvertDate(Truck_New18[[#This Row],[تاريخ انتهاء كارت التشغيل (هجري)]]),\"\")","v":"18/03/2017"},{"$f":"IF(Truck_New18[[#This Row],[المدة المتبقية على انتهاء كارت التشغيل]]<1,\"منتهي\",IF(Truck_New18[[#This Row],[المدة المتبقية على انتهاء كارت التشغيل]]<30,\"تجديد\",IF(Truck_New18[[#This Row],[المدة المتبقية على انتهاء كارت التشغيل]]=\"\",\"\",\"😁\")))","v":"منتهي"},{"$f":"Truck_New18[[#This Row],[تاريخ انتهاء التأمين (ميلادي)]]","v":"2023-02-08"},"2023-02-08",{"$f":"IFERROR(IF(Truck_New18[[#This Row],[المدة المتبيقة على انتهاء التامين]]<1,\"منتهي\",IF(Truck_New18[[#This Row],[المدة المتبيقة على انتهاء التامين]]<30,\"تجديد\",\"👌\")),\"\")","v":"👌"},"جلال حسانين","مصر",null,{"$f":"IFERROR(ConvertDate(Truck_New18[[#This Row],[تاريخ انتهاء التفويض (هجري)]]),\"\")","v":""},{"$f":"IF(Truck_New18[[#This Row],[المدة المتبقية على انتهاء التفويض]]<1,\"منتهي\",IF(Truck_New18[[#This Row],[المدة المتبقية على انتهاء التفويض]]<30,\"تجديد\",IF(Truck_New18[[#This Row],[المدة المتبقية على انتهاء التفويض]]=\"\",\"\",\"😁\")))","v":""},2313277093,"21/03/1443",{"$f":"IFERROR(ConvertDate(Truck_New18[[#This Row],[انتهاء رخصة القيادة (هجري)]]),\"\")","v":"27/10/2021"},{"$f":"IFERROR(IF(Truck_New18[[#This Row],[المدة المتبقية على انتهاء رخصة القيادة]]<1,\"منتهي\",IF(Truck_New18[[#This Row],[المدة المتبقية على انتهاء رخصة القيادة]]<30,\"تجديد\",\"😁\")),\"\")","v":"😁"},"0545591621","يوجد",null,null,"مصنع خرسانة بيشة",null,"انتظار اللوحات",null,null,"√",{"$f":"IFERROR(Truck_New18[[#This Row],[تاريخ انتهاء الفحص (ميلادي)]]-TODAY(),\"\")","v":-212},{"$f":"IFERROR(Truck_New18[[#This Row],[تاريخ انتهاء رخصة السير(ميلادي)]]-TODAY(),\"\")","v":93},{"$f":"IFERROR(Truck_New18[[#This Row],[تاريخ انتهاء كارت التشغيل (ميلادي)]]-TODAY(),\"\")","v":-2033},{"$f":"IFERROR(Truck_New18[[#This Row],[تاريخ انتهاء التأمين (ميلادي)]]-TODAY(),\"\")","v":120},{"$f":"IFERROR(Truck_New18[[#This Row],[انتهاء رخصة القيادة (هجري)]]-TODAY(),\"\")","v":""},{"$f":"IFERROR(Truck_New18[[#This Row],[تاريخ انتهاء التفويض (ميلادي)]]-TODAY(),\"\")","v":""}]
[{"$f":"IF(B5=\"\",\"\",SUBTOTAL(3,$B$3:B5))","v":3},"KH13","خلاطة اسمنت","Mercedes",2007,"أبيض",7009429445,"ا ن د  7906","WDB9333141L178133",724942210,"نقل خاص","28/11/1444",{"$f":"IFERROR(ConvertDate(Truck_New18[[#This Row],[تاريخ انتهاء الفحص (هجري)]]),\"\")","v":"16/06/2023"},{"$f":"IF(Truck_New18[[#This Row],[المدة المتبقية على انتهاء الفحص]]<1,\"منتهي\",IF(Truck_New18[[#This Row],[المدة المتبقية على انتهاء الفحص]]<30,\"تجديد\",IF(Truck_New18[[#This Row],[المدة المتبقية على انتهاء الفحص]]=\"\",\"\",\"😁\")))","v":"😁"},"30/04/1446",{"$f":"IFERROR(ConvertDate(Truck_New18[[#This Row],[تاريخ انتهاء رخصة السير(هجري)]]),\"\")","v":"02/11/2024"},{"$f":"IF(Truck_New18[[#This Row],[المدة المتبقية على انتهاء رخصة السير]]<1,\"منتهي\",IF(Truck_New18[[#This Row],[المدة المتبقية على انتهاء رخصة السير]]<30,\"تجديد\",IF(Truck_New18[[#This Row],[المدة المتبقية على انتهاء رخصة السير]]=\"\",\"\",\"😁\")))","v":"😁"},"03/02/1439",{"$f":"IFERROR(ConvertDate(Truck_New18[[#This Row],[تاريخ انتهاء كارت التشغيل (هجري)]]),\"\")","v":"23/10/2017"},{"$f":"IF(Truck_New18[[#This Row],[المدة المتبقية على انتهاء كارت التشغيل]]<1,\"منتهي\",IF(Truck_New18[[#This Row],[المدة المتبقية على انتهاء كارت التشغيل]]<30,\"تجديد\",IF(Truck_New18[[#This Row],[المدة المتبقية على انتهاء كارت التشغيل]]=\"\",\"\",\"😁\")))","v":"منتهي"},{"$f":"Truck_New18[[#This Row],[تاريخ انتهاء التأمين (ميلادي)]]","v":"2023-02-08"},"2023-02-08",{"$f":"IFERROR(IF(Truck_New18[[#This Row],[المدة المتبيقة على انتهاء التامين]]<1,\"منتهي\",IF(Truck_New18[[#This Row],[المدة المتبيقة على انتهاء التامين]]<30,\"تجديد\",\"👌\")),\"\")","v":"👌"},"فرج محمود محمود محمد ","مصر",null,{"$f":"IFERROR(ConvertDate(Truck_New18[[#This Row],[تاريخ انتهاء التفويض (هجري)]]),\"\")","v":""},{"$f":"IF(Truck_New18[[#This Row],[المدة المتبقية على انتهاء التفويض]]<1,\"منتهي\",IF(Truck_New18[[#This Row],[المدة المتبقية على انتهاء التفويض]]<30,\"تجديد\",IF(Truck_New18[[#This Row],[المدة المتبقية على انتهاء التفويض]]=\"\",\"\",\"😁\")))","v":""},null,null,{"$f":"IFERROR(ConvertDate(Truck_New18[[#This Row],[انتهاء رخصة القيادة (هجري)]]),\"\")","v":""},{"$f":"IFERROR(IF(Truck_New18[[#This Row],[المدة المتبقية على انتهاء رخصة القيادة]]<1,\"منتهي\",IF(Truck_New18[[#This Row],[المدة المتبقية على انتهاء رخصة القيادة]]<30,\"تجديد\",\"😁\")),\"\")","v":"منتهي"},"0504140671","يوجد",null,null,"مصنع خرسانة بيشة",null,null,null,null,"√",{"$f":"IFERROR(Truck_New18[[#This Row],[تاريخ انتهاء الفحص (ميلادي)]]-TODAY(),\"\")","v":248},{"$f":"IFERROR(Truck_New18[[#This Row],[تاريخ انتهاء رخصة السير(ميلادي)]]-TODAY(),\"\")","v":753},{"$f":"IFERROR(Truck_New18[[#This Row],[تاريخ انتهاء كارت التشغيل (ميلادي)]]-TODAY(),\"\")","v":-1814},{"$f":"IFERROR(Truck_New18[[#This Row],[تاريخ انتهاء التأمين (ميلادي)]]-TODAY(),\"\")","v":120},{"$f":"IFERROR(Truck_New18[[#This Row],[انتهاء رخصة القيادة (هجري)]]-TODAY(),\"\")","v":-44845},{"$f":"IFERROR(Truck_New18[[#This Row],[تاريخ انتهاء التفويض (ميلادي)]]-TODAY(),\"\")","v":""}]
[{"$f":"IF(B6=\"\",\"\",SUBTOTAL(3,$B$3:B6))","v":4},"TR1","تريلا - اكتروس","Mercedes",2008,"أخضر",7009429445,"ا هـ س  7969","WDB9340321L298839",324190310,"نقل خاص","15/02/1445",{"$f":"IFERROR(ConvertDate(Truck_New18[[#This Row],[تاريخ انتهاء الفحص (هجري)]]),\"\")","v":"31/08/2023"},{"$f":"IF(Truck_New18[[#This Row],[المدة المتبقية على انتهاء الفحص]]<1,\"منتهي\",IF(Truck_New18[[#This Row],[المدة المتبقية على انتهاء الفحص]]<30,\"تجديد\",IF(Truck_New18[[#This Row],[المدة المتبقية على انتهاء الفحص]]=\"\",\"\",\"😁\")))","v":"😁"},"09/04/1444",{"$f":"IFERROR(ConvertDate(Truck_New18[[#This Row],[تاريخ انتهاء رخصة السير(هجري)]]),\"\")","v":"03/11/2022"},{"$f":"IF(Truck_New18[[#This Row],[المدة المتبقية على انتهاء رخصة السير]]<1,\"منتهي\",IF(Truck_New18[[#This Row],[المدة المتبقية على انتهاء رخصة السير]]<30,\"تجديد\",IF(Truck_New18[[#This Row],[المدة المتبقية على انتهاء رخصة السير]]=\"\",\"\",\"😁\")))","v":"تجديد"},"19/07/1444",{"$f":"IFERROR(ConvertDate(Truck_New18[[#This Row],[تاريخ انتهاء كارت التشغيل (هجري)]]),\"\")","v":"09/02/2023"},{"$f":"IF(Truck_New18[[#This Row],[المدة المتبقية على انتهاء كارت التشغيل]]<1,\"منتهي\",IF(Truck_New18[[#This Row],[المدة المتبقية على انتهاء كارت التشغيل]]<30,\"تجديد\",IF(Truck_New18[[#This Row],[المدة المتبقية على انتهاء كارت التشغيل]]=\"\",\"\",\"😁\")))","v":"😁"},{"$f":"Truck_New18[[#This Row],[تاريخ انتهاء التأمين (ميلادي)]]","v":"2023-02-08"},"2023-02-08",{"$f":"IFERROR(IF(Truck_New18[[#This Row],[المدة المتبيقة على انتهاء التامين]]<1,\"منتهي\",IF(Truck_New18[[#This Row],[المدة المتبيقة على انتهاء التامين]]<30,\"تجديد\",\"👌\")),\"\")","v":"👌"},"محمد الصادق محمد سليمان ","السودان","16/02/1445",{"$f":"IFERROR(ConvertDate(Truck_New18[[#This Row],[تاريخ انتهاء التفويض (هجري)]]),\"\")","v":"01/09/2023"},{"$f":"IF(Truck_New18[[#This Row],[المدة المتبقية على انتهاء التفويض]]<1,\"منتهي\",IF(Truck_New18[[#This Row],[المدة المتبقية على انتهاء التفويض]]<30,\"تجديد\",IF(Truck_New18[[#This Row],[المدة المتبقية على انتهاء التفويض]]=\"\",\"\",\"😁\")))","v":"😁"},2511003119,"12/01/1449",{"$f":"IFERROR(ConvertDate(Truck_New18[[#This Row],[انتهاء رخصة القيادة (هجري)]]),\"\")","v":"16/06/2027"},{"$f":"IFERROR(IF(Truck_New18[[#This Row],[المدة المتبقية على انتهاء رخصة القيادة]]<1,\"منتهي\",IF(Truck_New18[[#This Row],[المدة المتبقية على انتهاء رخصة القيادة]]<30,\"تجديد\",\"😁\")),\"\")","v":"😁"},"0501730519","يوجد",null,null,"حركة التريلات-بيشة",null,null,null,null,"√",{"$f":"IFERROR(Truck_New18[[#This Row],[تاريخ انتهاء الفحص (ميلادي)]]-TODAY(),\"\")","v":324},{"$f":"IFERROR(Truck_New18[[#This Row],[تاريخ انتهاء رخصة السير(ميلادي)]]-TODAY(),\"\")","v":23},{"$f":"IFERROR(Truck_New18[[#This Row],[تاريخ انتهاء كارت التشغيل (ميلادي)]]-TODAY(),\"\")","v":121},{"$f":"IFERROR(Truck_New18[[#This Row],[تاريخ انتهاء التأمين (ميلادي)]]-TODAY(),\"\")","v":120},{"$f":"IFERROR(Truck_New18[[#This Row],[انتهاء رخصة القيادة (هجري)]]-TODAY(),\"\")","v":""},{"$f":"IFERROR(Truck_New18[[#This Row],[تاريخ انتهاء التفويض (ميلادي)]]-TODAY(),\"\")","v":325}]
[{"$f":"IF(B7=\"\",\"\",SUBTOTAL(3,$B$3:B7))","v":5},"TR2","تريلا - اكتروس","Mercedes",2009,"أزرق",7009429445,"ا ب و  8362","WDB9340321L384203",884910310,"نقل عام","09/08/1444",{"$f":"IFERROR(ConvertDate(Truck_New18[[#This Row],[تاريخ انتهاء الفحص (هجري)]]),\"\")","v":"01/03/2023"},{"$f":"IF(Truck_New18[[#This Row],[المدة المتبقية على انتهاء الفحص]]<1,\"منتهي\",IF(Truck_New18[[#This Row],[المدة المتبقية على انتهاء الفحص]]<30,\"تجديد\",IF(Truck_New18[[#This Row],[المدة المتبقية على انتهاء الفحص]]=\"\",\"\",\"😁\")))","v":"😁"},"11/03/1447",{"$f":"IFERROR(ConvertDate(Truck_New18[[#This Row],[تاريخ انتهاء رخصة السير(هجري)]]),\"\")","v":"03/09/2025"},{"$f":"IF(Truck_New18[[#This Row],[المدة المتبقية على انتهاء رخصة السير]]<1,\"منتهي\",IF(Truck_New18[[#This Row],[المدة المتبقية على انتهاء رخصة السير]]<30,\"تجديد\",IF(Truck_New18[[#This Row],[المدة المتبقية على انتهاء رخصة السير]]=\"\",\"\",\"😁\")))","v":"😁"},"01/02/1445",{"$f":"IFERROR(ConvertDate(Truck_New18[[#This Row],[تاريخ انتهاء كارت التشغيل (هجري)]]),\"\")","v":"17/08/2023"},{"$f":"IF(Truck_New18[[#This Row],[المدة المتبقية على انتهاء كارت التشغيل]]<1,\"منتهي\",IF(Truck_New18[[#This Row],[المدة المتبقية على انتهاء كارت التشغيل]]<30,\"تجديد\",IF(Truck_New18[[#This Row],[المدة المتبقية على انتهاء كارت التشغيل]]=\"\",\"\",\"😁\")))","v":"😁"},{"$f":"Truck_New18[[#This Row],[تاريخ انتهاء التأمين (ميلادي)]]","v":"2023-02-08"},"2023-02-08",{"$f":"IFERROR(IF(Truck_New18[[#This Row],[المدة المتبيقة على انتهاء التامين]]<1,\"منتهي\",IF(Truck_New18[[#This Row],[المدة المتبيقة على انتهاء التامين]]<30,\"تجديد\",\"👌\")),\"\")","v":"👌"},"باش زاده عبدالله شريف","باكستان","16/02/1445",{"$f":"IFERROR(ConvertDate(Truck_New18[[#This Row],[تاريخ انتهاء التفويض (هجري)]]),\"\")","v":"01/09/2023"},{"$f":"IF(Truck_New18[[#This Row],[المدة المتبقية على انتهاء التفويض]]<1,\"منتهي\",IF(Truck_New18[[#This Row],[المدة المتبقية على انتهاء التفويض]]<30,\"تجديد\",IF(Truck_New18[[#This Row],[المدة المتبقية على انتهاء التفويض]]=\"\",\"\",\"😁\")))","v":"😁"},2414630802,"09/02/1448",{"$f":"IFERROR(ConvertDate(Truck_New18[[#This Row],[انتهاء رخصة القيادة (هجري)]]),\"\")","v":"24/07/2026"},{"$f":"IFERROR(IF(Truck_New18[[#This Row],[المدة المتبقية على انتهاء رخصة القيادة]]<1,\"منتهي\",IF(Truck_New18[[#This Row],[المدة المتبقية على انتهاء رخصة القيادة]]<30,\"تجديد\",\"😁\")),\"\")","v":"😁"},"0550517633",null,null,null,"حركة التريلات-بيشة",null,null,null,null,"ꭓ",{"$f":"IFERROR(Truck_New18[[#This Row],[تاريخ انتهاء الفحص (ميلادي)]]-TODAY(),\"\")","v":141},{"$f":"IFERROR(Truck_New18[[#This Row],[تاريخ انتهاء رخصة السير(ميلادي)]]-TODAY(),\"\")","v":1058},{"$f":"IFERROR(Truck_New18[[#This Row],[تاريخ انتهاء كارت التشغيل (ميلادي)]]-TODAY(),\"\")","v":310},{"$f":"IFERROR(Truck_New18[[#This Row],[تاريخ انتهاء التأمين (ميلادي)]]-TODAY(),\"\")","v":120},{"$f":"IFERROR(Truck_New18[[#This Row],[انتهاء رخصة القيادة (هجري)]]-TODAY(),\"\")","v":""},{"$f":"IFERROR(Truck_New18[[#This Row],[تاريخ انتهاء التفويض (ميلادي)]]-TODAY(),\"\")","v":325}]
[{"$f":"IF(B8=\"\",\"\",SUBTOTAL(3,$B$3:B8))","v":6},"TR4","تريلا - اكتروس","Mercedes",2009,"ازرق/احمر",7009429445,"ا هـ س  7607","WDB9340321L395066",257069210,"نقل خاص","26/03/1444",{"$f":"IFERROR(ConvertDate(Truck_New18[[#This Row],[تاريخ انتهاء الفحص (هجري)]]),\"\")","v":"21/10/2022"},{"$f":"IF(Truck_New18[[#This Row],[المدة المتبقية على انتهاء الفحص]]<1,\"منتهي\",IF(Truck_New18[[#This Row],[المدة المتبقية على انتهاء الفحص]]<30,\"تجديد\",IF(Truck_New18[[#This Row],[المدة المتبقية على انتهاء الفحص]]=\"\",\"\",\"😁\")))","v":"تجديد"},"16/02/1447",{"$f":"IFERROR(ConvertDate(Truck_New18[[#This Row],[تاريخ انتهاء رخصة السير(هجري)]]),\"\")","v":"10/08/2025"},{"$f":"IF(Truck_New18[[#This Row],[المدة المتبقية على انتهاء رخصة السير]]<1,\"منتهي\",IF(Truck_New18[[#This Row],[المدة المتبقية على انتهاء رخصة السير]]<30,\"تجديد\",IF(Truck_New18[[#This Row],[المدة المتبقية على انتهاء رخصة السير]]=\"\",\"\",\"😁\")))","v":"😁"},"19/07/1444",{"$f":"IFERROR(ConvertDate(Truck_New18[[#This Row],[تاريخ انتهاء كارت التشغيل (هجري)]]),\"\")","v":"09/02/2023"},{"$f":"IF(Truck_New18[[#This Row],[المدة المتبقية على انتهاء كارت التشغيل]]<1,\"منتهي\",IF(Truck_New18[[#This Row],[المدة المتبقية على انتهاء كارت التشغيل]]<30,\"تجديد\",IF(Truck_New18[[#This Row],[المدة المتبقية على انتهاء كارت التشغيل]]=\"\",\"\",\"😁\")))","v":"😁"},{"$f":"Truck_New18[[#This Row],[تاريخ انتهاء التأمين (ميلادي)]]","v":"2023-02-08"},"2023-02-08",{"$f":"IFERROR(IF(Truck_New18[[#This Row],[المدة المتبيقة على انتهاء التامين]]<1,\"منتهي\",IF(Truck_New18[[#This Row],[المدة المتبيقة على انتهاء التامين]]<30,\"تجديد\",\"👌\")),\"\")","v":"👌"},"محمد عباس بوشا","الهند","01/03/1445",{"$f":"IFERROR(ConvertDate(Truck_New18[[#This Row],[تاريخ انتهاء التفويض (هجري)]]),\"\")","v":"15/09/2023"},{"$f":"IF(Truck_New18[[#This Row],[المدة المتبقية على انتهاء التفويض]]<1,\"منتهي\",IF(Truck_New18[[#This Row],[المدة المتبقية على انتهاء التفويض]]<30,\"تجديد\",IF(Truck_New18[[#This Row],[المدة المتبقية على انتهاء التفويض]]=\"\",\"\",\"😁\")))","v":"😁"},2444143206,"18/06/1444",{"$f":"IFERROR(ConvertDate(Truck_New18[[#This Row],[انتهاء رخصة القيادة (هجري)]]),\"\")","v":"10/01/2023"},{"$f":"IFERROR(IF(Truck_New18[[#This Row],[المدة المتبقية على انتهاء رخصة القيادة]]<1,\"منتهي\",IF(Truck_New18[[#This Row],[المدة المتبقية على انتهاء رخصة القيادة]]<30,\"تجديد\",\"😁\")),\"\")","v":"😁"},"0571246977",null,null,null,"حركة التريلات-بيشة",null,null,null,null,"√",{"$f":"IFERROR(Truck_New18[[#This Row],[تاريخ انتهاء الفحص (ميلادي)]]-TODAY(),\"\")","v":10},{"$f":"IFERROR(Truck_New18[[#This Row],[تاريخ انتهاء رخصة السير(ميلادي)]]-TODAY(),\"\")","v":1034},{"$f":"IFERROR(Truck_New18[[#This Row],[تاريخ انتهاء كارت التشغيل (ميلادي)]]-TODAY(),\"\")","v":121},{"$f":"IFERROR(Truck_New18[[#This Row],[تاريخ انتهاء التأمين (ميلادي)]]-TODAY(),\"\")","v":120},{"$f":"IFERROR(Truck_New18[[#This Row],[انتهاء رخصة القيادة (هجري)]]-TODAY(),\"\")","v":""},{"$f":"IFERROR(Truck_New18[[#This Row],[تاريخ انتهاء التفويض (ميلادي)]]-TODAY(),\"\")","v":339}]
[{"$f":"IF(B9=\"\",\"\",SUBTOTAL(3,$B$3:B9))","v":7},"TR6","تريلا - اكتروس","Mercedes",2009,"ازرق",7009429445,"ا هـ د  4843","WDB9340321L392239",770438210,"نقل خاص","10/04/1444",{"$f":"IFERROR(ConvertDate(Truck_New18[[#This Row],[تاريخ انتهاء الفحص (هجري)]]),\"\")","v":"04/11/2022"},{"$f":"IF(Truck_New18[[#This Row],[المدة المتبقية على انتهاء الفحص]]<1,\"منتهي\",IF(Truck_New18[[#This Row],[المدة المتبقية على انتهاء الفحص]]<30,\"تجديد\",IF(Truck_New18[[#This Row],[المدة المتبقية على انتهاء الفحص]]=\"\",\"\",\"😁\")))","v":"تجديد"},"26/12/1446",{"$f":"IFERROR(ConvertDate(Truck_New18[[#This Row],[تاريخ انتهاء رخصة السير(هجري)]]),\"\")","v":"22/06/2025"},{"$f":"IF(Truck_New18[[#This Row],[المدة المتبقية على انتهاء رخصة السير]]<1,\"منتهي\",IF(Truck_New18[[#This Row],[المدة المتبقية على انتهاء رخصة السير]]<30,\"تجديد\",IF(Truck_New18[[#This Row],[المدة المتبقية على انتهاء رخصة السير]]=\"\",\"\",\"😁\")))","v":"😁"},"24/12/1443",{"$f":"IFERROR(ConvertDate(Truck_New18[[#This Row],[تاريخ انتهاء كارت التشغيل (هجري)]]),\"\")","v":"23/07/2022"},{"$f":"IF(Truck_New18[[#This Row],[المدة المتبقية على انتهاء كارت التشغيل]]<1,\"منتهي\",IF(Truck_New18[[#This Row],[المدة المتبقية على انتهاء كارت التشغيل]]<30,\"تجديد\",IF(Truck_New18[[#This Row],[المدة المتبقية على انتهاء كارت التشغيل]]=\"\",\"\",\"😁\")))","v":"منتهي"},{"$f":"Truck_New18[[#This Row],[تاريخ انتهاء التأمين (ميلادي)]]","v":"2023-02-08"},"2023-02-08",{"$f":"IFERROR(IF(Truck_New18[[#This Row],[المدة المتبيقة على انتهاء التامين]]<1,\"منتهي\",IF(Truck_New18[[#This Row],[المدة المتبيقة على انتهاء التامين]]<30,\"تجديد\",\"👌\")),\"\")","v":"👌"},"طارق محمود محمد عارف","باكستان","06/04/1444",{"$f":"IFERROR(ConvertDate(Truck_New18[[#This Row],[تاريخ انتهاء التفويض (هجري)]]),\"\")","v":"31/10/2022"},{"$f":"IF(Truck_New18[[#This Row],[المدة المتبقية على انتهاء التفويض]]<1,\"منتهي\",IF(Truck_New18[[#This Row],[المدة المتبقية على انتهاء التفويض]]<30,\"تجديد\",IF(Truck_New18[[#This Row],[المدة المتبقية على انتهاء التفويض]]=\"\",\"\",\"😁\")))","v":"تجديد"},2239278498,null,{"$f":"IFERROR(ConvertDate(Truck_New18[[#This Row],[انتهاء رخصة القيادة (هجري)]]),\"\")","v":""},{"$f":"IFERROR(IF(Truck_New18[[#This Row],[المدة المتبقية على انتهاء رخصة القيادة]]<1,\"منتهي\",IF(Truck_New18[[#This Row],[المدة المتبقية على انتهاء رخصة القيادة]]<30,\"تجديد\",\"😁\")),\"\")","v":"منتهي"},"0502961657",null,null,null,"حركة التريلات-بيشة",null,null,null,null,"√",{"$f":"IFERROR(Truck_New18[[#This Row],[تاريخ انتهاء الفحص (ميلادي)]]-TODAY(),\"\")","v":24},{"$f":"IFERROR(Truck_New18[[#This Row],[تاريخ انتهاء رخصة السير(ميلادي)]]-TODAY(),\"\")","v":985},{"$f":"IFERROR(Truck_New18[[#This Row],[تاريخ انتهاء كارت التشغيل (ميلادي)]]-TODAY(),\"\")","v":-80},{"$f":"IFERROR(Truck_New18[[#This Row],[تاريخ انتهاء التأمين (ميلادي)]]-TODAY(),\"\")","v":120},{"$f":"IFERROR(Truck_New18[[#This Row],[انتهاء رخصة القيادة (هجري)]]-TODAY(),\"\")","v":-44845},{"$f":"IFERROR(Truck_New18[[#This Row],[تاريخ انتهاء التفويض (ميلادي)]]-TODAY(),\"\")","v":20}]
[{"$f":"IF(B10=\"\",\"\",SUBTOTAL(3,$B$3:B10))","v":8},"TR7","تريلا - اكتروس","Mercedes",2006,"أبيض",7009429445,"ا م ق  2135","WDB9340321L066512",55022210,"نقل خاص","05/09/1444",{"$f":"IFERROR(ConvertDate(Truck_New18[[#This Row],[تاريخ انتهاء الفحص (هجري)]]),\"\")","v":"26/03/2023"},{"$f":"IF(Truck_New18[[#This Row],[المدة المتبقية على انتهاء الفحص]]<1,\"منتهي\",IF(Truck_New18[[#This Row],[المدة المتبقية على انتهاء الفحص]]<30,\"تجديد\",IF(Truck_New18[[#This Row],[المدة المتبقية على انتهاء الفحص]]=\"\",\"\",\"😁\")))","v":"😁"},"20/04/1446",{"$f":"IFERROR(ConvertDate(Truck_New18[[#This Row],[تاريخ انتهاء رخصة السير(هجري)]]),\"\")","v":"23/10/2024"},{"$f":"IF(Truck_New18[[#This Row],[المدة المتبقية على انتهاء رخصة السير]]<1,\"منتهي\",IF(Truck_New18[[#This Row],[المدة المتبقية على انتهاء رخصة السير]]<30,\"تجديد\",IF(Truck_New18[[#This Row],[المدة المتبقية على انتهاء رخصة السير]]=\"\",\"\",\"😁\")))","v":"😁"},"06/02/1444",{"$f":"IFERROR(ConvertDate(Truck_New18[[#This Row],[تاريخ انتهاء كارت التشغيل (هجري)]]),\"\")","v":"02/09/2022"},{"$f":"IF(Truck_New18[[#This Row],[المدة المتبقية على انتهاء كارت التشغيل]]<1,\"منتهي\",IF(Truck_New18[[#This Row],[المدة المتبقية على انتهاء كارت التشغيل]]<30,\"تجديد\",IF(Truck_New18[[#This Row],[المدة المتبقية على انتهاء كارت التشغيل]]=\"\",\"\",\"😁\")))","v":"منتهي"},{"$f":"Truck_New18[[#This Row],[تاريخ انتهاء التأمين (ميلادي)]]","v":"2023-02-08"},"2023-02-08",{"$f":"IFERROR(IF(Truck_New18[[#This Row],[المدة المتبيقة على انتهاء التامين]]<1,\"منتهي\",IF(Truck_New18[[#This Row],[المدة المتبيقة على انتهاء التامين]]<30,\"تجديد\",\"👌\")),\"\")","v":"👌"},"سيد مان الله ظريف خان","باكستان",null,{"$f":"IFERROR(ConvertDate(Truck_New18[[#This Row],[تاريخ انتهاء التفويض (هجري)]]),\"\")","v":""},{"$f":"IF(Truck_New18[[#This Row],[المدة المتبقية على انتهاء التفويض]]<1,\"منتهي\",IF(Truck_New18[[#This Row],[المدة المتبقية على انتهاء التفويض]]<30,\"تجديد\",IF(Truck_New18[[#This Row],[المدة المتبقية على انتهاء التفويض]]=\"\",\"\",\"😁\")))","v":""},2315615035,null,{"$f":"IFERROR(ConvertDate(Truck_New18[[#This Row],[انتهاء رخصة القيادة (هجري)]]),\"\")","v":""},{"$f":"IFERROR(IF(Truck_New18[[#This Row],[المدة المتبقية على انتهاء رخصة القيادة]]<1,\"منتهي\",IF(Truck_New18[[#This Row],[المدة المتبقية على انتهاء رخصة القيادة]]<30,\"تجديد\",\"😁\")),\"\")","v":"منتهي"},"0553077654",null,null,null,"حركة التريلات-بيشة",null,null,null,null,"√",{"$f":"IFERROR(Truck_New18[[#This Row],[تاريخ انتهاء الفحص (ميلادي)]]-TODAY(),\"\")","v":166},{"$f":"IFERROR(Truck_New18[[#This Row],[تاريخ انتهاء رخصة السير(ميلادي)]]-TODAY(),\"\")","v":743},{"$f":"IFERROR(Truck_New18[[#This Row],[تاريخ انتهاء كارت التشغيل (ميلادي)]]-TODAY(),\"\")","v":-39},{"$f":"IFERROR(Truck_New18[[#This Row],[تاريخ انتهاء التأمين (ميلادي)]]-TODAY(),\"\")","v":120},{"$f":"IFERROR(Truck_New18[[#This Row],[انتهاء رخصة القيادة (هجري)]]-TODAY(),\"\")","v":-44845},{"$f":"IFERROR(Truck_New18[[#This Row],[تاريخ انتهاء التفويض (ميلادي)]]-TODAY(),\"\")","v":""}]
[{"$f":"IF(B11=\"\",\"\",SUBTOTAL(3,$B$3:B11))","v":9},"TR9","تريلا  - البي","Mercedes",1989,"ابيض",7009429445,"ا ا هـ  1955","WDB64913615420353",630146400,"نقل عام","20/07/1444",{"$f":"IFERROR(ConvertDate(Truck_New18[[#This Row],[تاريخ انتهاء الفحص (هجري)]]),\"\")","v":"10/02/2023"},{"$f":"IF(Truck_New18[[#This Row],[المدة المتبقية على انتهاء الفحص]]<1,\"منتهي\",IF(Truck_New18[[#This Row],[المدة المتبقية على انتهاء الفحص]]<30,\"تجديد\",IF(Truck_New18[[#This Row],[المدة المتبقية على انتهاء الفحص]]=\"\",\"\",\"😁\")))","v":"😁"},"06/04/1444",{"$f":"IFERROR(ConvertDate(Truck_New18[[#This Row],[تاريخ انتهاء رخصة السير(هجري)]]),\"\")","v":"31/10/2022"},{"$f":"IF(Truck_New18[[#This Row],[المدة المتبقية على انتهاء رخصة السير]]<1,\"منتهي\",IF(Truck_New18[[#This Row],[المدة المتبقية على انتهاء رخصة السير]]<30,\"تجديد\",IF(Truck_New18[[#This Row],[المدة المتبقية على انتهاء رخصة السير]]=\"\",\"\",\"😁\")))","v":"تجديد"},"06/04/1438 ",{"$f":"IFERROR(ConvertDate(Truck_New18[[#This Row],[تاريخ انتهاء كارت التشغيل (هجري)]]),\"\")","v":"04/01/2017"},{"$f":"IF(Truck_New18[[#This Row],[المدة المتبقية على انتهاء كارت التشغيل]]<1,\"منتهي\",IF(Truck_New18[[#This Row],[المدة المتبقية على انتهاء كارت التشغيل]]<30,\"تجديد\",IF(Truck_New18[[#This Row],[المدة المتبقية على انتهاء كارت التشغيل]]=\"\",\"\",\"😁\")))","v":"منتهي"},{"$f":"Truck_New18[[#This Row],[تاريخ انتهاء التأمين (ميلادي)]]","v":"2023-02-08"},"2023-02-08",{"$f":"IFERROR(IF(Truck_New18[[#This Row],[المدة المتبيقة على انتهاء التامين]]<1,\"منتهي\",IF(Truck_New18[[#This Row],[المدة المتبيقة على انتهاء التامين]]<30,\"تجديد\",\"👌\")),\"\")","v":"👌"},"بدون سائق",null,null,{"$f":"IFERROR(ConvertDate(Truck_New18[[#This Row],[تاريخ انتهاء التفويض (هجري)]]),\"\")","v":""},{"$f":"IF(Truck_New18[[#This Row],[المدة المتبقية على انتهاء التفويض]]<1,\"منتهي\",IF(Truck_New18[[#This Row],[المدة المتبقية على انتهاء التفويض]]<30,\"تجديد\",IF(Truck_New18[[#This Row],[المدة المتبقية على انتهاء التفويض]]=\"\",\"\",\"😁\")))","v":""},null,null,{"$f":"IFERROR(ConvertDate(Truck_New18[[#This Row],[انتهاء رخصة القيادة (هجري)]]),\"\")","v":""},{"$f":"IFERROR(IF(Truck_New18[[#This Row],[المدة المتبقية على انتهاء رخصة القيادة]]<1,\"منتهي\",IF(Truck_New18[[#This Row],[المدة المتبقية على انتهاء رخصة القيادة]]<30,\"تجديد\",\"😁\")),\"\")","v":"منتهي"},null,null,null,null,"حركة التريلات-بيشة","يجب ربطه بمنصه وصل","معطلة",null,null,"√",{"$f":"IFERROR(Truck_New18[[#This Row],[تاريخ انتهاء الفحص (ميلادي)]]-TODAY(),\"\")","v":122},{"$f":"IFERROR(Truck_New18[[#This Row],[تاريخ انتهاء رخصة السير(ميلادي)]]-TODAY(),\"\")","v":20},{"$f":"IFERROR(Truck_New18[[#This Row],[تاريخ انتهاء كارت التشغيل (ميلادي)]]-TODAY(),\"\")","v":-2106},{"$f":"IFERROR(Truck_New18[[#This Row],[تاريخ انتهاء التأمين (ميلادي)]]-TODAY(),\"\")","v":120},{"$f":"IFERROR(Truck_New18[[#This Row],[انتهاء رخصة القيادة (هجري)]]-TODAY(),\"\")","v":-44845},{"$f":"IFERROR(Truck_New18[[#This Row],[تاريخ انتهاء التفويض (ميلادي)]]-TODAY(),\"\")","v":""}]
[{"$f":"IF(B12=\"\",\"\",SUBTOTAL(3,$B$3:B12))","v":10},"TR10","تريلا  - البي","Mercedes",1994,"برتقالي",7009429445,"ا ا هـ  1977","WDB6581471K038917",255330600,"نقل عام","14/01/1443",{"$f":"IFERROR(ConvertDate(Truck_New18[[#This Row],[تاريخ انتهاء الفحص (هجري)]]),\"\")","v":"22/08/2021"},{"$f":"IF(Truck_New18[[#This Row],[المدة المتبقية على انتهاء الفحص]]<1,\"منتهي\",IF(Truck_New18[[#This Row],[المدة المتبقية على انتهاء الفحص]]<30,\"تجديد\",IF(Truck_New18[[#This Row],[المدة المتبقية على انتهاء الفحص]]=\"\",\"\",\"😁\")))","v":"منتهي"},"07/01/1445",{"$f":"IFERROR(ConvertDate(Truck_New18[[#This Row],[تاريخ انتهاء رخصة السير(هجري)]]),\"\")","v":"24/07/2023"},{"$f":"IF(Truck_New18[[#This Row],[المدة المتبقية على انتهاء رخصة السير]]<1,\"منتهي\",IF(Truck_New18[[#This Row],[المدة المتبقية على انتهاء رخصة السير]]<30,\"تجديد\",IF(Truck_New18[[#This Row],[المدة المتبقية على انتهاء رخصة السير]]=\"\",\"\",\"😁\")))","v":"😁"},"22/04/1441",{"$f":"IFERROR(ConvertDate(Truck_New18[[#This Row],[تاريخ انتهاء كارت التشغيل (هجري)]]),\"\")","v":"19/12/2019"},{"$f":"IF(Truck_New18[[#This Row],[المدة المتبقية على انتهاء كارت التشغيل]]<1,\"منتهي\",IF(Truck_New18[[#This Row],[المدة المتبقية على انتهاء كارت التشغيل]]<30,\"تجديد\",IF(Truck_New18[[#This Row],[المدة المتبقية على انتهاء كارت التشغيل]]=\"\",\"\",\"😁\")))","v":"منتهي"},{"$f":"Truck_New18[[#This Row],[تاريخ انتهاء التأمين (ميلادي)]]","v":"2023-02-08"},"2023-02-08",{"$f":"IFERROR(IF(Truck_New18[[#This Row],[المدة المتبيقة على انتهاء التامين]]<1,\"منتهي\",IF(Truck_New18[[#This Row],[المدة المتبيقة على انتهاء التامين]]<30,\"تجديد\",\"👌\")),\"\")","v":"👌"},"ارديف سينج",null,null,{"$f":"IFERROR(ConvertDate(Truck_New18[[#This Row],[تاريخ انتهاء التفويض (هجري)]]),\"\")","v":""},{"$f":"IF(Truck_New18[[#This Row],[المدة المتبقية على انتهاء التفويض]]<1,\"منتهي\",IF(Truck_New18[[#This Row],[المدة المتبقية على انتهاء التفويض]]<30,\"تجديد\",IF(Truck_New18[[#This Row],[المدة المتبقية على انتهاء التفويض]]=\"\",\"\",\"😁\")))","v":""},null,null,{"$f":"IFERROR(ConvertDate(Truck_New18[[#This Row],[انتهاء رخصة القيادة (هجري)]]),\"\")","v":""},{"$f":"IFERROR(IF(Truck_New18[[#This Row],[المدة المتبقية على انتهاء رخصة القيادة]]<1,\"منتهي\",IF(Truck_New18[[#This Row],[المدة المتبقية على انتهاء رخصة القيادة]]<30,\"تجديد\",\"😁\")),\"\")","v":"منتهي"},null,null,null,null,null,null,null,null,null,"√",{"$f":"IFERROR(Truck_New18[[#This Row],[تاريخ انتهاء الفحص (ميلادي)]]-TODAY(),\"\")","v":-415},{"$f":"IFERROR(Truck_New18[[#This Row],[تاريخ انتهاء رخصة السير(ميلادي)]]-TODAY(),\"\")","v":286},{"$f":"IFERROR(Truck_New18[[#This Row],[تاريخ انتهاء كارت التشغيل (ميلادي)]]-TODAY(),\"\")","v":-1027},{"$f":"IFERROR(Truck_New18[[#This Row],[تاريخ انتهاء التأمين (ميلادي)]]-TODAY(),\"\")","v":120},{"$f":"IFERROR(Truck_New18[[#This Row],[انتهاء رخصة القيادة (هجري)]]-TODAY(),\"\")","v":-44845},{"$f":"IFERROR(Truck_New18[[#This Row],[تاريخ انتهاء التفويض (ميلادي)]]-TODAY(),\"\")","v":""}]
[{"$f":"IF(B13=\"\",\"\",SUBTOTAL(3,$B$3:B13))","v":11},"PM3","مضخة","Mercedes",2005,"أصفر",7009429445,"ا س ك  9821","WDB9301421K954805",785391900,"نقل خاص","01/10/1440",{"$f":"IFERROR(ConvertDate(Truck_New18[[#This Row],[تاريخ انتهاء الفحص (هجري)]]),\"\")","v":"04/06/2019"},{"$f":"IF(Truck_New18[[#This Row],[المدة المتبقية على انتهاء الفحص]]<1,\"منتهي\",IF(Truck_New18[[#This Row],[المدة المتبقية على انتهاء الفحص]]<30,\"تجديد\",IF(Truck_New18[[#This Row],[المدة المتبقية على انتهاء الفحص]]=\"\",\"\",\"😁\")))","v":"منتهي"},"25/03/1442",{"$f":"IFERROR(ConvertDate(Truck_New18[[#This Row],[تاريخ انتهاء رخصة السير(هجري)]]),\"\")","v":"10/11/2020"},{"$f":"IF(Truck_New18[[#This Row],[المدة المتبقية على انتهاء رخصة السير]]<1,\"منتهي\",IF(Truck_New18[[#This Row],[المدة المتبقية على انتهاء رخصة السير]]<30,\"تجديد\",IF(Truck_New18[[#This Row],[المدة المتبقية على انتهاء رخصة السير]]=\"\",\"\",\"😁\")))","v":"منتهي"},"25/03/1442",{"$f":"IFERROR(ConvertDate(Truck_New18[[#This Row],[تاريخ انتهاء كارت التشغيل (هجري)]]),\"\")","v":"10/11/2020"},{"$f":"IF(Truck_New18[[#This Row],[المدة المتبقية على انتهاء كارت التشغيل]]<1,\"منتهي\",IF(Truck_New18[[#This Row],[المدة المتبقية على انتهاء كارت التشغيل]]<30,\"تجديد\",IF(Truck_New18[[#This Row],[المدة المتبقية على انتهاء كارت التشغيل]]=\"\",\"\",\"😁\")))","v":"منتهي"},{"$f":"Truck_New18[[#This Row],[تاريخ انتهاء التأمين (ميلادي)]]","v":"2023-02-08"},"2023-02-08",{"$f":"IFERROR(IF(Truck_New18[[#This Row],[المدة المتبيقة على انتهاء التامين]]<1,\"منتهي\",IF(Truck_New18[[#This Row],[المدة المتبيقة على انتهاء التامين]]<30,\"تجديد\",\"👌\")),\"\")","v":"👌"},"تعاليم عبد الستار","الهند",null,{"$f":"IFERROR(ConvertDate(Truck_New18[[#This Row],[تاريخ انتهاء التفويض (هجري)]]),\"\")","v":""},{"$f":"IF(Truck_New18[[#This Row],[المدة المتبقية على انتهاء التفويض]]<1,\"منتهي\",IF(Truck_New18[[#This Row],[المدة المتبقية على انتهاء التفويض]]<30,\"تجديد\",IF(Truck_New18[[#This Row],[المدة المتبقية على انتهاء التفويض]]=\"\",\"\",\"😁\")))","v":""},null,null,{"$f":"IFERROR(ConvertDate(Truck_New18[[#This Row],[انتهاء رخصة القيادة (هجري)]]),\"\")","v":""},{"$f":"IFERROR(IF(Truck_New18[[#This Row],[المدة المتبقية على انتهاء رخصة القيادة]]<1,\"منتهي\",IF(Truck_New18[[#This Row],[المدة المتبقية على انتهاء رخصة القيادة]]<30,\"تجديد\",\"😁\")),\"\")","v":"منتهي"},508141966,"يوجد",null,null,"مصنع خرسانة بيشة",null,null,null,null,"√",{"$f":"IFERROR(Truck_New18[[#This Row],[تاريخ انتهاء الفحص (ميلادي)]]-TODAY(),\"\")","v":-1225},{"$f":"IFERROR(Truck_New18[[#This Row],[تاريخ انتهاء رخصة السير(ميلادي)]]-TODAY(),\"\")","v":-700},{"$f":"IFERROR(Truck_New18[[#This Row],[تاريخ انتهاء كارت التشغيل (ميلادي)]]-TODAY(),\"\")","v":-700},{"$f":"IFERROR(Truck_New18[[#This Row],[تاريخ انتهاء التأمين (ميلادي)]]-TODAY(),\"\")","v":120},{"$f":"IFERROR(Truck_New18[[#This Row],[انتهاء رخصة القيادة (هجري)]]-TODAY(),\"\")","v":-44845},{"$f":"IFERROR(Truck_New18[[#This Row],[تاريخ انتهاء التفويض (ميلادي)]]-TODAY(),\"\")","v":""}]
[{"$f":"IF(B14=\"\",\"\",SUBTOTAL(3,$B$3:B14))","v":12},"DN8","ايسوزو / شاحنة","ISUZU",2019,"أبيض",7001457873,"ب ر ط  ","JAAJP24TXK7K02149",200082710,"نقل خاص","وكالة  2019",{"$f":"IFERROR(ConvertDate(Truck_New18[[#This Row],[تاريخ انتهاء الفحص (هجري)]]),\"\")","v":""},{"$f":"IF(Truck_New18[[#This Row],[المدة المتبقية على انتهاء الفحص]]<1,\"منتهي\",IF(Truck_New18[[#This Row],[المدة المتبقية على انتهاء الفحص]]<30,\"تجديد\",IF(Truck_New18[[#This Row],[المدة المتبقية على انتهاء الفحص]]=\"\",\"\",\"😁\")))","v":""},"25/11/1443",{"$f":"IFERROR(ConvertDate(Truck_New18[[#This Row],[تاريخ انتهاء رخصة السير(هجري)]]),\"\")","v":"24/06/2022"},{"$f":"IF(Truck_New18[[#This Row],[المدة المتبقية على انتهاء رخصة السير]]<1,\"منتهي\",IF(Truck_New18[[#This Row],[المدة المتبقية على انتهاء رخصة السير]]<30,\"تجديد\",IF(Truck_New18[[#This Row],[المدة المتبقية على انتهاء رخصة السير]]=\"\",\"\",\"😁\")))","v":"منتهي"},null,{"$f":"IFERROR(ConvertDate(Truck_New18[[#This Row],[تاريخ انتهاء كارت التشغيل (هجري)]]),\"\")","v":""},{"$f":"IF(Truck_New18[[#This Row],[المدة المتبقية على انتهاء كارت التشغيل]]<1,\"منتهي\",IF(Truck_New18[[#This Row],[المدة المتبقية على انتهاء كارت التشغيل]]<30,\"تجديد\",IF(Truck_New18[[#This Row],[المدة المتبقية على انتهاء كارت التشغيل]]=\"\",\"\",\"😁\")))","v":""},{"$f":"Truck_New18[[#This Row],[تاريخ انتهاء التأمين (ميلادي)]]","v":"2023-02-08"},"2023-02-08",{"$f":"IFERROR(IF(Truck_New18[[#This Row],[المدة المتبيقة على انتهاء التامين]]<1,\"منتهي\",IF(Truck_New18[[#This Row],[المدة المتبيقة على انتهاء التامين]]<30,\"تجديد\",\"👌\")),\"\")","v":"👌"},"علي محمد سليمان التوم","اليمن",null,{"$f":"IFERROR(ConvertDate(Truck_New18[[#This Row],[تاريخ انتهاء التفويض (هجري)]]),\"\")","v":""},{"$f":"IF(Truck_New18[[#This Row],[المدة المتبقية على انتهاء التفويض]]<1,\"منتهي\",IF(Truck_New18[[#This Row],[المدة المتبقية على انتهاء التفويض]]<30,\"تجديد\",IF(Truck_New18[[#This Row],[المدة المتبقية على انتهاء التفويض]]=\"\",\"\",\"😁\")))","v":""},null,"لا يوجد / خارج الكفالة",{"$f":"IFERROR(ConvertDate(Truck_New18[[#This Row],[انتهاء رخصة القيادة (هجري)]]),\"\")","v":""},{"$f":"IFERROR(IF(Truck_New18[[#This Row],[المدة المتبقية على انتهاء رخصة القيادة]]<1,\"منتهي\",IF(Truck_New18[[#This Row],[المدة المتبقية على انتهاء رخصة القيادة]]<30,\"تجديد\",\"😁\")),\"\")","v":"😁"},"0530656796","يوجد",null,null,"صيانة 810",null,null,null,null,"√",{"$f":"IFERROR(Truck_New18[[#This Row],[تاريخ انتهاء الفحص (ميلادي)]]-TODAY(),\"\")","v":""},{"$f":"IFERROR(Truck_New18[[#This Row],[تاريخ انتهاء رخصة السير(ميلادي)]]-TODAY(),\"\")","v":-109},{"$f":"IFERROR(Truck_New18[[#This Row],[تاريخ انتهاء كارت التشغيل (ميلادي)]]-TODAY(),\"\")","v":""},{"$f":"IFERROR(Truck_New18[[#This Row],[تاريخ انتهاء التأمين (ميلادي)]]-TODAY(),\"\")","v":120},{"$f":"IFERROR(Truck_New18[[#This Row],[انتهاء رخصة القيادة (هجري)]]-TODAY(),\"\")","v":""},{"$f":"IFERROR(Truck_New18[[#This Row],[تاريخ انتهاء التفويض (ميلادي)]]-TODAY(),\"\")","v":""}]
[{"$f":"IF(B15=\"\",\"\",SUBTOTAL(3,$B$3:B15))","v":13},"DN9","ايسوزو / شاحنة","ISUZU",2019,"أبيض",7001457873,"ب ر ط  8685","JAAJP24T6K7K02147",800082710,"نقل خاص","وكالة  2019",{"$f":"IFERROR(ConvertDate(Truck_New18[[#This Row],[تاريخ انتهاء الفحص (هجري)]]),\"\")","v":""},{"$f":"IF(Truck_New18[[#This Row],[المدة المتبقية على انتهاء الفحص]]<1,\"منتهي\",IF(Truck_New18[[#This Row],[المدة المتبقية على انتهاء الفحص]]<30,\"تجديد\",IF(Truck_New18[[#This Row],[المدة المتبقية على انتهاء الفحص]]=\"\",\"\",\"😁\")))","v":""},"25/11/1443",{"$f":"IFERROR(ConvertDate(Truck_New18[[#This Row],[تاريخ انتهاء رخصة السير(هجري)]]),\"\")","v":"24/06/2022"},{"$f":"IF(Truck_New18[[#This Row],[المدة المتبقية على انتهاء رخصة السير]]<1,\"منتهي\",IF(Truck_New18[[#This Row],[المدة المتبقية على انتهاء رخصة السير]]<30,\"تجديد\",IF(Truck_New18[[#This Row],[المدة المتبقية على انتهاء رخصة السير]]=\"\",\"\",\"😁\")))","v":"منتهي"},null,{"$f":"IFERROR(ConvertDate(Truck_New18[[#This Row],[تاريخ انتهاء كارت التشغيل (هجري)]]),\"\")","v":""},{"$f":"IF(Truck_New18[[#This Row],[المدة المتبقية على انتهاء كارت التشغيل]]<1,\"منتهي\",IF(Truck_New18[[#This Row],[المدة المتبقية على انتهاء كارت التشغيل]]<30,\"تجديد\",IF(Truck_New18[[#This Row],[المدة المتبقية على انتهاء كارت التشغيل]]=\"\",\"\",\"😁\")))","v":""},{"$f":"Truck_New18[[#This Row],[تاريخ انتهاء التأمين (ميلادي)]]","v":"2023-02-08"},"2023-02-08",{"$f":"IFERROR(IF(Truck_New18[[#This Row],[المدة المتبيقة على انتهاء التامين]]<1,\"منتهي\",IF(Truck_New18[[#This Row],[المدة المتبيقة على انتهاء التامين]]<30,\"تجديد\",\"👌\")),\"\")","v":"👌"},"محمد زمان مهر زمان","باكستان",null,{"$f":"IFERROR(ConvertDate(Truck_New18[[#This Row],[تاريخ انتهاء التفويض (هجري)]]),\"\")","v":""},{"$f":"IF(Truck_New18[[#This Row],[المدة المتبقية على انتهاء التفويض]]<1,\"منتهي\",IF(Truck_New18[[#This Row],[المدة المتبقية على انتهاء التفويض]]<30,\"تجديد\",IF(Truck_New18[[#This Row],[المدة المتبقية على انتهاء التفويض]]=\"\",\"\",\"😁\")))","v":""},null,"يوجد",{"$f":"IFERROR(ConvertDate(Truck_New18[[#This Row],[انتهاء رخصة القيادة (هجري)]]),\"\")","v":""},{"$f":"IFERROR(IF(Truck_New18[[#This Row],[المدة المتبقية على انتهاء رخصة القيادة]]<1,\"منتهي\",IF(Truck_New18[[#This Row],[المدة المتبقية على انتهاء رخصة القيادة]]<30,\"تجديد\",\"😁\")),\"\")","v":"😁"},"0538185176",null,null,null,"صيانة 810",null,null,null,null,"√",{"$f":"IFERROR(Truck_New18[[#This Row],[تاريخ انتهاء الفحص (ميلادي)]]-TODAY(),\"\")","v":""},{"$f":"IFERROR(Truck_New18[[#This Row],[تاريخ انتهاء رخصة السير(ميلادي)]]-TODAY(),\"\")","v":-109},{"$f":"IFERROR(Truck_New18[[#This Row],[تاريخ انتهاء كارت التشغيل (ميلادي)]]-TODAY(),\"\")","v":""},{"$f":"IFERROR(Truck_New18[[#This Row],[تاريخ انتهاء التأمين (ميلادي)]]-TODAY(),\"\")","v":120},{"$f":"IFERROR(Truck_New18[[#This Row],[انتهاء رخصة القيادة (هجري)]]-TODAY(),\"\")","v":""},{"$f":"IFERROR(Truck_New18[[#This Row],[تاريخ انتهاء التفويض (ميلادي)]]-TODAY(),\"\")","v":""}]
[{"$f":"IF(B16=\"\",\"\",SUBTOTAL(3,$B$3:B16))","v":14},"DN10","ايسوزو / شاحنة","ISUZU",2019,"أبيض",7001457873,"ب ر ط 8686","JAAJP24T3K7K02140",510082710,"نقل خاص","01/09/1444",{"$f":"IFERROR(ConvertDate(Truck_New18[[#This Row],[تاريخ انتهاء الفحص (هجري)]]),\"\")","v":"22/03/2023"},{"$f":"IF(Truck_New18[[#This Row],[المدة المتبقية على انتهاء الفحص]]<1,\"منتهي\",IF(Truck_New18[[#This Row],[المدة المتبقية على انتهاء الفحص]]<30,\"تجديد\",IF(Truck_New18[[#This Row],[المدة المتبقية على انتهاء الفحص]]=\"\",\"\",\"😁\")))","v":"😁"},"25/11/1443",{"$f":"IFERROR(ConvertDate(Truck_New18[[#This Row],[تاريخ انتهاء رخصة السير(هجري)]]),\"\")","v":"24/06/2022"},{"$f":"IF(Truck_New18[[#This Row],[المدة المتبقية على انتهاء رخصة السير]]<1,\"منتهي\",IF(Truck_New18[[#This Row],[المدة المتبقية على انتهاء رخصة السير]]<30,\"تجديد\",IF(Truck_New18[[#This Row],[المدة المتبقية على انتهاء رخصة السير]]=\"\",\"\",\"😁\")))","v":"منتهي"},null,{"$f":"IFERROR(ConvertDate(Truck_New18[[#This Row],[تاريخ انتهاء كارت التشغيل (هجري)]]),\"\")","v":""},{"$f":"IF(Truck_New18[[#This Row],[المدة المتبقية على انتهاء كارت التشغيل]]<1,\"منتهي\",IF(Truck_New18[[#This Row],[المدة المتبقية على انتهاء كارت التشغيل]]<30,\"تجديد\",IF(Truck_New18[[#This Row],[المدة المتبقية على انتهاء كارت التشغيل]]=\"\",\"\",\"😁\")))","v":""},{"$f":"Truck_New18[[#This Row],[تاريخ انتهاء التأمين (ميلادي)]]","v":"2023-02-08"},"2023-02-08",{"$f":"IFERROR(IF(Truck_New18[[#This Row],[المدة المتبيقة على انتهاء التامين]]<1,\"منتهي\",IF(Truck_New18[[#This Row],[المدة المتبيقة على انتهاء التامين]]<30,\"تجديد\",\"👌\")),\"\")","v":"👌"},"علي محمد عويضه","مصر",null,{"$f":"IFERROR(ConvertDate(Truck_New18[[#This Row],[تاريخ انتهاء التفويض (هجري)]]),\"\")","v":""},{"$f":"IF(Truck_New18[[#This Row],[المدة المتبقية على انتهاء التفويض]]<1,\"منتهي\",IF(Truck_New18[[#This Row],[المدة المتبقية على انتهاء التفويض]]<30,\"تجديد\",IF(Truck_New18[[#This Row],[المدة المتبقية على انتهاء التفويض]]=\"\",\"\",\"😁\")))","v":""},null,null,{"$f":"IFERROR(ConvertDate(Truck_New18[[#This Row],[انتهاء رخصة القيادة (هجري)]]),\"\")","v":""},{"$f":"IFERROR(IF(Truck_New18[[#This Row],[المدة المتبقية على انتهاء رخصة القيادة]]<1,\"منتهي\",IF(Truck_New18[[#This Row],[المدة المتبقية على انتهاء رخصة القيادة]]<30,\"تجديد\",\"😁\")),\"\")","v":"منتهي"},"0592232503",null,null,null,"مشروع 806 فرقة 3 سمر",null,null,null,null,"√",{"$f":"IFERROR(Truck_New18[[#This Row],[تاريخ انتهاء الفحص (ميلادي)]]-TODAY(),\"\")","v":162},{"$f":"IFERROR(Truck_New18[[#This Row],[تاريخ انتهاء رخصة السير(ميلادي)]]-TODAY(),\"\")","v":-109},{"$f":"IFERROR(Truck_New18[[#This Row],[تاريخ انتهاء كارت التشغيل (ميلادي)]]-TODAY(),\"\")","v":""},{"$f":"IFERROR(Truck_New18[[#This Row],[تاريخ انتهاء التأمين (ميلادي)]]-TODAY(),\"\")","v":120},{"$f":"IFERROR(Truck_New18[[#This Row],[انتهاء رخصة القيادة (هجري)]]-TODAY(),\"\")","v":-44845},{"$f":"IFERROR(Truck_New18[[#This Row],[تاريخ انتهاء التفويض (ميلادي)]]-TODAY(),\"\")","v":""}]
[{"$f":"IF(B17=\"\",\"\",SUBTOTAL(3,$B$3:B17))","v":15},"SR3","قلاب - سكس","Mercedes",1982,"رصاصي",7009429445,"ا ا ن  6932","34 300 354 834 888",395075100,"نقل خاص","01/02/1436",{"$f":"IFERROR(ConvertDate(Truck_New18[[#This Row],[تاريخ انتهاء الفحص (هجري)]]),\"\")","v":"23/11/2014"},{"$f":"IF(Truck_New18[[#This Row],[المدة المتبقية على انتهاء الفحص]]<1,\"منتهي\",IF(Truck_New18[[#This Row],[المدة المتبقية على انتهاء الفحص]]<30,\"تجديد\",IF(Truck_New18[[#This Row],[المدة المتبقية على انتهاء الفحص]]=\"\",\"\",\"😁\")))","v":"منتهي"},"09/02/1441",{"$f":"IFERROR(ConvertDate(Truck_New18[[#This Row],[تاريخ انتهاء رخصة السير(هجري)]]),\"\")","v":"08/10/2019"},{"$f":"IF(Truck_New18[[#This Row],[المدة المتبقية على انتهاء رخصة السير]]<1,\"منتهي\",IF(Truck_New18[[#This Row],[المدة المتبقية على انتهاء رخصة السير]]<30,\"تجديد\",IF(Truck_New18[[#This Row],[المدة المتبقية على انتهاء رخصة السير]]=\"\",\"\",\"😁\")))","v":"منتهي"},"09/02/1438",{"$f":"IFERROR(ConvertDate(Truck_New18[[#This Row],[تاريخ انتهاء كارت التشغيل (هجري)]]),\"\")","v":"09/11/2016"},{"$f":"IF(Truck_New18[[#This Row],[المدة المتبقية على انتهاء كارت التشغيل]]<1,\"منتهي\",IF(Truck_New18[[#This Row],[المدة المتبقية على انتهاء كارت التشغيل]]<30,\"تجديد\",IF(Truck_New18[[#This Row],[المدة المتبقية على انتهاء كارت التشغيل]]=\"\",\"\",\"😁\")))","v":"منتهي"},{"$f":"Truck_New18[[#This Row],[تاريخ انتهاء التأمين (ميلادي)]]","v":"2023-02-08"},"2023-02-08",{"$f":"IFERROR(IF(Truck_New18[[#This Row],[المدة المتبيقة على انتهاء التامين]]<1,\"منتهي\",IF(Truck_New18[[#This Row],[المدة المتبيقة على انتهاء التامين]]<30,\"تجديد\",\"👌\")),\"\")","v":"👌"},null,null,null,{"$f":"IFERROR(ConvertDate(Truck_New18[[#This Row],[تاريخ انتهاء التفويض (هجري)]]),\"\")","v":""},{"$f":"IF(Truck_New18[[#This Row],[المدة المتبقية على انتهاء التفويض]]<1,\"منتهي\",IF(Truck_New18[[#This Row],[المدة المتبقية على انتهاء التفويض]]<30,\"تجديد\",IF(Truck_New18[[#This Row],[المدة المتبقية على انتهاء التفويض]]=\"\",\"\",\"😁\")))","v":""},null,null,{"$f":"IFERROR(ConvertDate(Truck_New18[[#This Row],[انتهاء رخصة القيادة (هجري)]]),\"\")","v":""},{"$f":"IFERROR(IF(Truck_New18[[#This Row],[المدة المتبقية على انتهاء رخصة القيادة]]<1,\"منتهي\",IF(Truck_New18[[#This Row],[المدة المتبقية على انتهاء رخصة القيادة]]<30,\"تجديد\",\"😁\")),\"\")","v":"منتهي"},null,null,null,null,"كسارة بيشة",null,null,null,null,"√",{"$f":"IFERROR(Truck_New18[[#This Row],[تاريخ انتهاء الفحص (ميلادي)]]-TODAY(),\"\")","v":-2879},{"$f":"IFERROR(Truck_New18[[#This Row],[تاريخ انتهاء رخصة السير(ميلادي)]]-TODAY(),\"\")","v":-1099},{"$f":"IFERROR(Truck_New18[[#This Row],[تاريخ انتهاء كارت التشغيل (ميلادي)]]-TODAY(),\"\")","v":-2162},{"$f":"IFERROR(Truck_New18[[#This Row],[تاريخ انتهاء التأمين (ميلادي)]]-TODAY(),\"\")","v":120},{"$f":"IFERROR(Truck_New18[[#This Row],[انتهاء رخصة القيادة (هجري)]]-TODAY(),\"\")","v":-44845},{"$f":"IFERROR(Truck_New18[[#This Row],[تاريخ انتهاء التفويض (ميلادي)]]-TODAY(),\"\")","v":""}]
[{"$f":"IF(B18=\"\",\"\",SUBTOTAL(3,$B$3:B18))","v":16},"SR5","شاحنة - سكس","Mercedes",1981,"رصاصي",7009429445,"ا ا هـ  5537","34 301 454 748 989 ",907347200,"نقل عام","01/10/1438",{"$f":"IFERROR(ConvertDate(Truck_New18[[#This Row],[تاريخ انتهاء الفحص (هجري)]]),\"\")","v":"25/06/2017"},{"$f":"IF(Truck_New18[[#This Row],[المدة المتبقية على انتهاء الفحص]]<1,\"منتهي\",IF(Truck_New18[[#This Row],[المدة المتبقية على انتهاء الفحص]]<30,\"تجديد\",IF(Truck_New18[[#This Row],[المدة المتبقية على انتهاء الفحص]]=\"\",\"\",\"😁\")))","v":"منتهي"},"11/08/1440",{"$f":"IFERROR(ConvertDate(Truck_New18[[#This Row],[تاريخ انتهاء رخصة السير(هجري)]]),\"\")","v":"16/04/2019"},{"$f":"IF(Truck_New18[[#This Row],[المدة المتبقية على انتهاء رخصة السير]]<1,\"منتهي\",IF(Truck_New18[[#This Row],[المدة المتبقية على انتهاء رخصة السير]]<30,\"تجديد\",IF(Truck_New18[[#This Row],[المدة المتبقية على انتهاء رخصة السير]]=\"\",\"\",\"😁\")))","v":"منتهي"},"03/02/1439",{"$f":"IFERROR(ConvertDate(Truck_New18[[#This Row],[تاريخ انتهاء كارت التشغيل (هجري)]]),\"\")","v":"23/10/2017"},{"$f":"IF(Truck_New18[[#This Row],[المدة المتبقية على انتهاء كارت التشغيل]]<1,\"منتهي\",IF(Truck_New18[[#This Row],[المدة المتبقية على انتهاء كارت التشغيل]]<30,\"تجديد\",IF(Truck_New18[[#This Row],[المدة المتبقية على انتهاء كارت التشغيل]]=\"\",\"\",\"😁\")))","v":"منتهي"},{"$f":"Truck_New18[[#This Row],[تاريخ انتهاء التأمين (ميلادي)]]","v":"2023-02-08"},"2023-02-08",{"$f":"IFERROR(IF(Truck_New18[[#This Row],[المدة المتبيقة على انتهاء التامين]]<1,\"منتهي\",IF(Truck_New18[[#This Row],[المدة المتبيقة على انتهاء التامين]]<30,\"تجديد\",\"👌\")),\"\")","v":"👌"},null,null,null,{"$f":"IFERROR(ConvertDate(Truck_New18[[#This Row],[تاريخ انتهاء التفويض (هجري)]]),\"\")","v":""},{"$f":"IF(Truck_New18[[#This Row],[المدة المتبقية على انتهاء التفويض]]<1,\"منتهي\",IF(Truck_New18[[#This Row],[المدة المتبقية على انتهاء التفويض]]<30,\"تجديد\",IF(Truck_New18[[#This Row],[المدة المتبقية على انتهاء التفويض]]=\"\",\"\",\"😁\")))","v":""},null,null,{"$f":"IFERROR(ConvertDate(Truck_New18[[#This Row],[انتهاء رخصة القيادة (هجري)]]),\"\")","v":""},{"$f":"IFERROR(IF(Truck_New18[[#This Row],[المدة المتبقية على انتهاء رخصة القيادة]]<1,\"منتهي\",IF(Truck_New18[[#This Row],[المدة المتبقية على انتهاء رخصة القيادة]]<30,\"تجديد\",\"😁\")),\"\")","v":"منتهي"},null,null,null,null,"كسارة بيشة",null,null,null,null,"√",{"$f":"IFERROR(Truck_New18[[#This Row],[تاريخ انتهاء الفحص (ميلادي)]]-TODAY(),\"\")","v":-1934},{"$f":"IFERROR(Truck_New18[[#This Row],[تاريخ انتهاء رخصة السير(ميلادي)]]-TODAY(),\"\")","v":-1274},{"$f":"IFERROR(Truck_New18[[#This Row],[تاريخ انتهاء كارت التشغيل (ميلادي)]]-TODAY(),\"\")","v":-1814},{"$f":"IFERROR(Truck_New18[[#This Row],[تاريخ انتهاء التأمين (ميلادي)]]-TODAY(),\"\")","v":120},{"$f":"IFERROR(Truck_New18[[#This Row],[انتهاء رخصة القيادة (هجري)]]-TODAY(),\"\")","v":-44845},{"$f":"IFERROR(Truck_New18[[#This Row],[تاريخ انتهاء التفويض (ميلادي)]]-TODAY(),\"\")","v":""}]
[{"$f":"IF(B19=\"\",\"\",SUBTOTAL(3,$B$3:B19))","v":17},"SR6","قلاب - سكس","Mercedes",1982,"رصاصي",7009429445,"ا ا هـ  1943","34 300 114 885 813",854295100,"نقل عام","01/08/1436",{"$f":"IFERROR(ConvertDate(Truck_New18[[#This Row],[تاريخ انتهاء الفحص (هجري)]]),\"\")","v":"19/05/2015"},{"$f":"IF(Truck_New18[[#This Row],[المدة المتبقية على انتهاء الفحص]]<1,\"منتهي\",IF(Truck_New18[[#This Row],[المدة المتبقية على انتهاء الفحص]]<30,\"تجديد\",IF(Truck_New18[[#This Row],[المدة المتبقية على انتهاء الفحص]]=\"\",\"\",\"😁\")))","v":"منتهي"},"29/08/1441",{"$f":"IFERROR(ConvertDate(Truck_New18[[#This Row],[تاريخ انتهاء رخصة السير(هجري)]]),\"\")","v":"22/04/2020"},{"$f":"IF(Truck_New18[[#This Row],[المدة المتبقية على انتهاء رخصة السير]]<1,\"منتهي\",IF(Truck_New18[[#This Row],[المدة المتبقية على انتهاء رخصة السير]]<30,\"تجديد\",IF(Truck_New18[[#This Row],[المدة المتبقية على انتهاء رخصة السير]]=\"\",\"\",\"😁\")))","v":"منتهي"},"29/081438",{"$f":"IFERROR(ConvertDate(Truck_New18[[#This Row],[تاريخ انتهاء كارت التشغيل (هجري)]]),\"\")","v":""},{"$f":"IF(Truck_New18[[#This Row],[المدة المتبقية على انتهاء كارت التشغيل]]<1,\"منتهي\",IF(Truck_New18[[#This Row],[المدة المتبقية على انتهاء كارت التشغيل]]<30,\"تجديد\",IF(Truck_New18[[#This Row],[المدة المتبقية على انتهاء كارت التشغيل]]=\"\",\"\",\"😁\")))","v":""},{"$f":"Truck_New18[[#This Row],[تاريخ انتهاء التأمين (ميلادي)]]","v":"2023-02-08"},"2023-02-08",{"$f":"IFERROR(IF(Truck_New18[[#This Row],[المدة المتبيقة على انتهاء التامين]]<1,\"منتهي\",IF(Truck_New18[[#This Row],[المدة المتبيقة على انتهاء التامين]]<30,\"تجديد\",\"👌\")),\"\")","v":"👌"},null,null,null,{"$f":"IFERROR(ConvertDate(Truck_New18[[#This Row],[تاريخ انتهاء التفويض (هجري)]]),\"\")","v":""},{"$f":"IF(Truck_New18[[#This Row],[المدة المتبقية على انتهاء التفويض]]<1,\"منتهي\",IF(Truck_New18[[#This Row],[المدة المتبقية على انتهاء التفويض]]<30,\"تجديد\",IF(Truck_New18[[#This Row],[المدة المتبقية على انتهاء التفويض]]=\"\",\"\",\"😁\")))","v":""},null,null,{"$f":"IFERROR(ConvertDate(Truck_New18[[#This Row],[انتهاء رخصة القيادة (هجري)]]),\"\")","v":""},{"$f":"IFERROR(IF(Truck_New18[[#This Row],[المدة المتبقية على انتهاء رخصة القيادة]]<1,\"منتهي\",IF(Truck_New18[[#This Row],[المدة المتبقية على انتهاء رخصة القيادة]]<30,\"تجديد\",\"😁\")),\"\")","v":"منتهي"},null,null,null,null,"كسارة بيشة",null,null,null,null,"√",{"$f":"IFERROR(Truck_New18[[#This Row],[تاريخ انتهاء الفحص (ميلادي)]]-TODAY(),\"\")","v":-2702},{"$f":"IFERROR(Truck_New18[[#This Row],[تاريخ انتهاء رخصة السير(ميلادي)]]-TODAY(),\"\")","v":-902},{"$f":"IFERROR(Truck_New18[[#This Row],[تاريخ انتهاء كارت التشغيل (ميلادي)]]-TODAY(),\"\")","v":""},{"$f":"IFERROR(Truck_New18[[#This Row],[تاريخ انتهاء التأمين (ميلادي)]]-TODAY(),\"\")","v":120},{"$f":"IFERROR(Truck_New18[[#This Row],[انتهاء رخصة القيادة (هجري)]]-TODAY(),\"\")","v":-44845},{"$f":"IFERROR(Truck_New18[[#This Row],[تاريخ انتهاء التفويض (ميلادي)]]-TODAY(),\"\")","v":""}]
[{"$f":"IF(B20=\"\",\"\",SUBTOTAL(3,$B$3:B20))","v":18},"SA1","قلاب - اكتروس","Mercedes",2008,"أزرق غامق",7009429445,"ب ر ا   8923","WDB9300341L304514",47412710,"نقل خاص","01/10/1444",{"$f":"IFERROR(ConvertDate(Truck_New18[[#This Row],[تاريخ انتهاء الفحص (هجري)]]),\"\")","v":"21/04/2023"},{"$f":"IF(Truck_New18[[#This Row],[المدة المتبقية على انتهاء الفحص]]<1,\"منتهي\",IF(Truck_New18[[#This Row],[المدة المتبقية على انتهاء الفحص]]<30,\"تجديد\",IF(Truck_New18[[#This Row],[المدة المتبقية على انتهاء الفحص]]=\"\",\"\",\"😁\")))","v":"😁"},"20/10/1443",{"$f":"IFERROR(ConvertDate(Truck_New18[[#This Row],[تاريخ انتهاء رخصة السير(هجري)]]),\"\")","v":"21/05/2022"},{"$f":"IF(Truck_New18[[#This Row],[المدة المتبقية على انتهاء رخصة السير]]<1,\"منتهي\",IF(Truck_New18[[#This Row],[المدة المتبقية على انتهاء رخصة السير]]<30,\"تجديد\",IF(Truck_New18[[#This Row],[المدة المتبقية على انتهاء رخصة السير]]=\"\",\"\",\"😁\")))","v":"منتهي"},"لا يوجد ",{"$f":"IFERROR(ConvertDate(Truck_New18[[#This Row],[تاريخ انتهاء كارت التشغيل (هجري)]]),\"\")","v":""},{"$f":"IF(Truck_New18[[#This Row],[المدة المتبقية على انتهاء كارت التشغيل]]<1,\"منتهي\",IF(Truck_New18[[#This Row],[المدة المتبقية على انتهاء كارت التشغيل]]<30,\"تجديد\",IF(Truck_New18[[#This Row],[المدة المتبقية على انتهاء كارت التشغيل]]=\"\",\"\",\"😁\")))","v":""},{"$f":"Truck_New18[[#This Row],[تاريخ انتهاء التأمين (ميلادي)]]","v":"2023-02-08"},"2023-02-08",{"$f":"IFERROR(IF(Truck_New18[[#This Row],[المدة المتبيقة على انتهاء التامين]]<1,\"منتهي\",IF(Truck_New18[[#This Row],[المدة المتبيقة على انتهاء التامين]]<30,\"تجديد\",\"👌\")),\"\")","v":"👌"},"سلطان محمد عثمان","مصر","11/01/1445",{"$f":"IFERROR(ConvertDate(Truck_New18[[#This Row],[تاريخ انتهاء التفويض (هجري)]]),\"\")","v":"28/07/2023"},{"$f":"IF(Truck_New18[[#This Row],[المدة المتبقية على انتهاء التفويض]]<1,\"منتهي\",IF(Truck_New18[[#This Row],[المدة المتبقية على انتهاء التفويض]]<30,\"تجديد\",IF(Truck_New18[[#This Row],[المدة المتبقية على انتهاء التفويض]]=\"\",\"\",\"😁\")))","v":"😁"},2518299504,"12/01/1449",{"$f":"IFERROR(ConvertDate(Truck_New18[[#This Row],[انتهاء رخصة القيادة (هجري)]]),\"\")","v":"16/06/2027"},{"$f":"IFERROR(IF(Truck_New18[[#This Row],[المدة المتبقية على انتهاء رخصة القيادة]]<1,\"منتهي\",IF(Truck_New18[[#This Row],[المدة المتبقية على انتهاء رخصة القيادة]]<30,\"تجديد\",\"😁\")),\"\")","v":"😁"},"0554849633",null,null,null,"مشروع 806",null,null,null,null,"√",{"$f":"IFERROR(Truck_New18[[#This Row],[تاريخ انتهاء الفحص (ميلادي)]]-TODAY(),\"\")","v":192},{"$f":"IFERROR(Truck_New18[[#This Row],[تاريخ انتهاء رخصة السير(ميلادي)]]-TODAY(),\"\")","v":-143},{"$f":"IFERROR(Truck_New18[[#This Row],[تاريخ انتهاء كارت التشغيل (ميلادي)]]-TODAY(),\"\")","v":""},{"$f":"IFERROR(Truck_New18[[#This Row],[تاريخ انتهاء التأمين (ميلادي)]]-TODAY(),\"\")","v":120},{"$f":"IFERROR(Truck_New18[[#This Row],[انتهاء رخصة القيادة (هجري)]]-TODAY(),\"\")","v":""},{"$f":"IFERROR(Truck_New18[[#This Row],[تاريخ انتهاء التفويض (ميلادي)]]-TODAY(),\"\")","v":290}]
[{"$f":"IF(B21=\"\",\"\",SUBTOTAL(3,$B$3:B21))","v":19},"SA2","قلاب مكنسة - اكتروس","Mercedes",2011,"أزرق - أحمر",7009429445,"أ ر ح    5678","WDB9302031L527482",337412710,"نقل عام","18/08/1444",{"$f":"IFERROR(ConvertDate(Truck_New18[[#This Row],[تاريخ انتهاء الفحص (هجري)]]),\"\")","v":"10/03/2023"},{"$f":"IF(Truck_New18[[#This Row],[المدة المتبقية على انتهاء الفحص]]<1,\"منتهي\",IF(Truck_New18[[#This Row],[المدة المتبقية على انتهاء الفحص]]<30,\"تجديد\",IF(Truck_New18[[#This Row],[المدة المتبقية على انتهاء الفحص]]=\"\",\"\",\"😁\")))","v":"😁"},"17/07/1445",{"$f":"IFERROR(ConvertDate(Truck_New18[[#This Row],[تاريخ انتهاء رخصة السير(هجري)]]),\"\")","v":"27/01/2024"},{"$f":"IF(Truck_New18[[#This Row],[المدة المتبقية على انتهاء رخصة السير]]<1,\"منتهي\",IF(Truck_New18[[#This Row],[المدة المتبقية على انتهاء رخصة السير]]<30,\"تجديد\",IF(Truck_New18[[#This Row],[المدة المتبقية على انتهاء رخصة السير]]=\"\",\"\",\"😁\")))","v":"😁"},"لا يوجد ",{"$f":"IFERROR(ConvertDate(Truck_New18[[#This Row],[تاريخ انتهاء كارت التشغيل (هجري)]]),\"\")","v":""},{"$f":"IF(Truck_New18[[#This Row],[المدة المتبقية على انتهاء كارت التشغيل]]<1,\"منتهي\",IF(Truck_New18[[#This Row],[المدة المتبقية على انتهاء كارت التشغيل]]<30,\"تجديد\",IF(Truck_New18[[#This Row],[المدة المتبقية على انتهاء كارت التشغيل]]=\"\",\"\",\"😁\")))","v":""},{"$f":"Truck_New18[[#This Row],[تاريخ انتهاء التأمين (ميلادي)]]","v":"2023-02-08"},"2023-02-08",{"$f":"IFERROR(IF(Truck_New18[[#This Row],[المدة المتبيقة على انتهاء التامين]]<1,\"منتهي\",IF(Truck_New18[[#This Row],[المدة المتبيقة على انتهاء التامين]]<30,\"تجديد\",\"👌\")),\"\")","v":"👌"},"علي عبد الجواد","مصري",null,{"$f":"IFERROR(ConvertDate(Truck_New18[[#This Row],[تاريخ انتهاء التفويض (هجري)]]),\"\")","v":""},{"$f":"IF(Truck_New18[[#This Row],[المدة المتبقية على انتهاء التفويض]]<1,\"منتهي\",IF(Truck_New18[[#This Row],[المدة المتبقية على انتهاء التفويض]]<30,\"تجديد\",IF(Truck_New18[[#This Row],[المدة المتبقية على انتهاء التفويض]]=\"\",\"\",\"😁\")))","v":""},null,"منتهية",{"$f":"IFERROR(ConvertDate(Truck_New18[[#This Row],[انتهاء رخصة القيادة (هجري)]]),\"\")","v":""},{"$f":"IFERROR(IF(Truck_New18[[#This Row],[المدة المتبقية على انتهاء رخصة القيادة]]<1,\"منتهي\",IF(Truck_New18[[#This Row],[المدة المتبقية على انتهاء رخصة القيادة]]<30,\"تجديد\",\"😁\")),\"\")","v":"😁"},"0538947542",null,null,null,"صيانة 810",null,null,null,null,"√",{"$f":"IFERROR(Truck_New18[[#This Row],[تاريخ انتهاء الفحص (ميلادي)]]-TODAY(),\"\")","v":150},{"$f":"IFERROR(Truck_New18[[#This Row],[تاريخ انتهاء رخصة السير(ميلادي)]]-TODAY(),\"\")","v":473},{"$f":"IFERROR(Truck_New18[[#This Row],[تاريخ انتهاء كارت التشغيل (ميلادي)]]-TODAY(),\"\")","v":""},{"$f":"IFERROR(Truck_New18[[#This Row],[تاريخ انتهاء التأمين (ميلادي)]]-TODAY(),\"\")","v":120},{"$f":"IFERROR(Truck_New18[[#This Row],[انتهاء رخصة القيادة (هجري)]]-TODAY(),\"\")","v":""},{"$f":"IFERROR(Truck_New18[[#This Row],[تاريخ انتهاء التفويض (ميلادي)]]-TODAY(),\"\")","v":""}]
[{"$f":"IF(B22=\"\",\"\",SUBTOTAL(3,$B$3:B22))","v":20},"SA3","قلاب - اكتروس","Mercedes",2011,"أزرق",7009429445,"ا ر ح    5693","WDB9302041L583864",817412710,"نقل عام","24/11/1444",{"$f":"IFERROR(ConvertDate(Truck_New18[[#This Row],[تاريخ انتهاء الفحص (هجري)]]),\"\")","v":"12/06/2023"},{"$f":"IF(Truck_New18[[#This Row],[المدة المتبقية على انتهاء الفحص]]<1,\"منتهي\",IF(Truck_New18[[#This Row],[المدة المتبقية على انتهاء الفحص]]<30,\"تجديد\",IF(Truck_New18[[#This Row],[المدة المتبقية على انتهاء الفحص]]=\"\",\"\",\"😁\")))","v":"😁"},"03/08/1445",{"$f":"IFERROR(ConvertDate(Truck_New18[[#This Row],[تاريخ انتهاء رخصة السير(هجري)]]),\"\")","v":"12/02/2024"},{"$f":"IF(Truck_New18[[#This Row],[المدة المتبقية على انتهاء رخصة السير]]<1,\"منتهي\",IF(Truck_New18[[#This Row],[المدة المتبقية على انتهاء رخصة السير]]<30,\"تجديد\",IF(Truck_New18[[#This Row],[المدة المتبقية على انتهاء رخصة السير]]=\"\",\"\",\"😁\")))","v":"😁"},"لا يوجد ",{"$f":"IFERROR(ConvertDate(Truck_New18[[#This Row],[تاريخ انتهاء كارت التشغيل (هجري)]]),\"\")","v":""},{"$f":"IF(Truck_New18[[#This Row],[المدة المتبقية على انتهاء كارت التشغيل]]<1,\"منتهي\",IF(Truck_New18[[#This Row],[المدة المتبقية على انتهاء كارت التشغيل]]<30,\"تجديد\",IF(Truck_New18[[#This Row],[المدة المتبقية على انتهاء كارت التشغيل]]=\"\",\"\",\"😁\")))","v":""},{"$f":"Truck_New18[[#This Row],[تاريخ انتهاء التأمين (ميلادي)]]","v":"2023-02-08"},"2023-02-08",{"$f":"IFERROR(IF(Truck_New18[[#This Row],[المدة المتبيقة على انتهاء التامين]]<1,\"منتهي\",IF(Truck_New18[[#This Row],[المدة المتبيقة على انتهاء التامين]]<30,\"تجديد\",\"👌\")),\"\")","v":"👌"},"رنجيت كشن","الهند",null,{"$f":"IFERROR(ConvertDate(Truck_New18[[#This Row],[تاريخ انتهاء التفويض (هجري)]]),\"\")","v":""},{"$f":"IF(Truck_New18[[#This Row],[المدة المتبقية على انتهاء التفويض]]<1,\"منتهي\",IF(Truck_New18[[#This Row],[المدة المتبقية على انتهاء التفويض]]<30,\"تجديد\",IF(Truck_New18[[#This Row],[المدة المتبقية على انتهاء التفويض]]=\"\",\"\",\"😁\")))","v":""},null,"لا يوجد",{"$f":"IFERROR(ConvertDate(Truck_New18[[#This Row],[انتهاء رخصة القيادة (هجري)]]),\"\")","v":""},{"$f":"IFERROR(IF(Truck_New18[[#This Row],[المدة المتبقية على انتهاء رخصة القيادة]]<1,\"منتهي\",IF(Truck_New18[[#This Row],[المدة المتبقية على انتهاء رخصة القيادة]]<30,\"تجديد\",\"😁\")),\"\")","v":"😁"},"0537094992",null,null,null,"صيانة 810","ورشة خميس مشيط",null,null,null,"√",{"$f":"IFERROR(Truck_New18[[#This Row],[تاريخ انتهاء الفحص (ميلادي)]]-TODAY(),\"\")","v":244},{"$f":"IFERROR(Truck_New18[[#This Row],[تاريخ انتهاء رخصة السير(ميلادي)]]-TODAY(),\"\")","v":489},{"$f":"IFERROR(Truck_New18[[#This Row],[تاريخ انتهاء كارت التشغيل (ميلادي)]]-TODAY(),\"\")","v":""},{"$f":"IFERROR(Truck_New18[[#This Row],[تاريخ انتهاء التأمين (ميلادي)]]-TODAY(),\"\")","v":120},{"$f":"IFERROR(Truck_New18[[#This Row],[انتهاء رخصة القيادة (هجري)]]-TODAY(),\"\")","v":""},{"$f":"IFERROR(Truck_New18[[#This Row],[تاريخ انتهاء التفويض (ميلادي)]]-TODAY(),\"\")","v":""}]
[{"$f":"IF(B23=\"\",\"\",SUBTOTAL(3,$B$3:B23))","v":21},"SA4","قلاب - اكتروس","Mercedes",2008,"أبيض",7009429445,"ب ر ا     8913","WDB9300461L275686",667412710,"نقل خاص","01/07/1444",{"$f":"IFERROR(ConvertDate(Truck_New18[[#This Row],[تاريخ انتهاء الفحص (هجري)]]),\"\")","v":"22/01/2023"},{"$f":"IF(Truck_New18[[#This Row],[المدة المتبقية على انتهاء الفحص]]<1,\"منتهي\",IF(Truck_New18[[#This Row],[المدة المتبقية على انتهاء الفحص]]<30,\"تجديد\",IF(Truck_New18[[#This Row],[المدة المتبقية على انتهاء الفحص]]=\"\",\"\",\"😁\")))","v":"😁"},"20/10/1443",{"$f":"IFERROR(ConvertDate(Truck_New18[[#This Row],[تاريخ انتهاء رخصة السير(هجري)]]),\"\")","v":"21/05/2022"},{"$f":"IF(Truck_New18[[#This Row],[المدة المتبقية على انتهاء رخصة السير]]<1,\"منتهي\",IF(Truck_New18[[#This Row],[المدة المتبقية على انتهاء رخصة السير]]<30,\"تجديد\",IF(Truck_New18[[#This Row],[المدة المتبقية على انتهاء رخصة السير]]=\"\",\"\",\"😁\")))","v":"منتهي"},"لا يوجد ",{"$f":"IFERROR(ConvertDate(Truck_New18[[#This Row],[تاريخ انتهاء كارت التشغيل (هجري)]]),\"\")","v":""},{"$f":"IF(Truck_New18[[#This Row],[المدة المتبقية على انتهاء كارت التشغيل]]<1,\"منتهي\",IF(Truck_New18[[#This Row],[المدة المتبقية على انتهاء كارت التشغيل]]<30,\"تجديد\",IF(Truck_New18[[#This Row],[المدة المتبقية على انتهاء كارت التشغيل]]=\"\",\"\",\"😁\")))","v":""},{"$f":"Truck_New18[[#This Row],[تاريخ انتهاء التأمين (ميلادي)]]","v":"2023-02-08"},"2023-02-08",{"$f":"IFERROR(IF(Truck_New18[[#This Row],[المدة المتبيقة على انتهاء التامين]]<1,\"منتهي\",IF(Truck_New18[[#This Row],[المدة المتبيقة على انتهاء التامين]]<30,\"تجديد\",\"👌\")),\"\")","v":"👌"},"محمد ارمان","بنجلاديش",null,{"$f":"IFERROR(ConvertDate(Truck_New18[[#This Row],[تاريخ انتهاء التفويض (هجري)]]),\"\")","v":""},{"$f":"IF(Truck_New18[[#This Row],[المدة المتبقية على انتهاء التفويض]]<1,\"منتهي\",IF(Truck_New18[[#This Row],[المدة المتبقية على انتهاء التفويض]]<30,\"تجديد\",IF(Truck_New18[[#This Row],[المدة المتبقية على انتهاء التفويض]]=\"\",\"\",\"😁\")))","v":""},null,"نقل ثقيل / خارج الكفالة",{"$f":"IFERROR(ConvertDate(Truck_New18[[#This Row],[انتهاء رخصة القيادة (هجري)]]),\"\")","v":""},{"$f":"IFERROR(IF(Truck_New18[[#This Row],[المدة المتبقية على انتهاء رخصة القيادة]]<1,\"منتهي\",IF(Truck_New18[[#This Row],[المدة المتبقية على انتهاء رخصة القيادة]]<30,\"تجديد\",\"😁\")),\"\")","v":"😁"},"0572255389","يوجد",null,null,"صيانة 810",null,null,null,null,"√",{"$f":"IFERROR(Truck_New18[[#This Row],[تاريخ انتهاء الفحص (ميلادي)]]-TODAY(),\"\")","v":103},{"$f":"IFERROR(Truck_New18[[#This Row],[تاريخ انتهاء رخصة السير(ميلادي)]]-TODAY(),\"\")","v":-143},{"$f":"IFERROR(Truck_New18[[#This Row],[تاريخ انتهاء كارت التشغيل (ميلادي)]]-TODAY(),\"\")","v":""},{"$f":"IFERROR(Truck_New18[[#This Row],[تاريخ انتهاء التأمين (ميلادي)]]-TODAY(),\"\")","v":120},{"$f":"IFERROR(Truck_New18[[#This Row],[انتهاء رخصة القيادة (هجري)]]-TODAY(),\"\")","v":""},{"$f":"IFERROR(Truck_New18[[#This Row],[تاريخ انتهاء التفويض (ميلادي)]]-TODAY(),\"\")","v":""}]
[{"$f":"IF(B24=\"\",\"\",SUBTOTAL(3,$B$3:B24))","v":22},"SA5","قلاب - اكتروس","Mercedes",2007,"رصاصي",7009429445,"ب ر ا   8928","WDB9302031L149594",307412710,"نقل خاص","10/08/1444",{"$f":"IFERROR(ConvertDate(Truck_New18[[#This Row],[تاريخ انتهاء الفحص (هجري)]]),\"\")","v":"02/03/2023"},{"$f":"IF(Truck_New18[[#This Row],[المدة المتبقية على انتهاء الفحص]]<1,\"منتهي\",IF(Truck_New18[[#This Row],[المدة المتبقية على انتهاء الفحص]]<30,\"تجديد\",IF(Truck_New18[[#This Row],[المدة المتبقية على انتهاء الفحص]]=\"\",\"\",\"😁\")))","v":"😁"},"20/10/1443",{"$f":"IFERROR(ConvertDate(Truck_New18[[#This Row],[تاريخ انتهاء رخصة السير(هجري)]]),\"\")","v":"21/05/2022"},{"$f":"IF(Truck_New18[[#This Row],[المدة المتبقية على انتهاء رخصة السير]]<1,\"منتهي\",IF(Truck_New18[[#This Row],[المدة المتبقية على انتهاء رخصة السير]]<30,\"تجديد\",IF(Truck_New18[[#This Row],[المدة المتبقية على انتهاء رخصة السير]]=\"\",\"\",\"😁\")))","v":"منتهي"},"لا يوجد ",{"$f":"IFERROR(ConvertDate(Truck_New18[[#This Row],[تاريخ انتهاء كارت التشغيل (هجري)]]),\"\")","v":""},{"$f":"IF(Truck_New18[[#This Row],[المدة المتبقية على انتهاء كارت التشغيل]]<1,\"منتهي\",IF(Truck_New18[[#This Row],[المدة المتبقية على انتهاء كارت التشغيل]]<30,\"تجديد\",IF(Truck_New18[[#This Row],[المدة المتبقية على انتهاء كارت التشغيل]]=\"\",\"\",\"😁\")))","v":""},{"$f":"Truck_New18[[#This Row],[تاريخ انتهاء التأمين (ميلادي)]]","v":"2023-02-08"},"2023-02-08",{"$f":"IFERROR(IF(Truck_New18[[#This Row],[المدة المتبيقة على انتهاء التامين]]<1,\"منتهي\",IF(Truck_New18[[#This Row],[المدة المتبيقة على انتهاء التامين]]<30,\"تجديد\",\"👌\")),\"\")","v":"👌"},"عمار محمد سعيد","اليمن",null,{"$f":"IFERROR(ConvertDate(Truck_New18[[#This Row],[تاريخ انتهاء التفويض (هجري)]]),\"\")","v":""},{"$f":"IF(Truck_New18[[#This Row],[المدة المتبقية على انتهاء التفويض]]<1,\"منتهي\",IF(Truck_New18[[#This Row],[المدة المتبقية على انتهاء التفويض]]<30,\"تجديد\",IF(Truck_New18[[#This Row],[المدة المتبقية على انتهاء التفويض]]=\"\",\"\",\"😁\")))","v":""},null,"لا توجد / خارج الكفالة",{"$f":"IFERROR(ConvertDate(Truck_New18[[#This Row],[انتهاء رخصة القيادة (هجري)]]),\"\")","v":""},{"$f":"IFERROR(IF(Truck_New18[[#This Row],[المدة المتبقية على انتهاء رخصة القيادة]]<1,\"منتهي\",IF(Truck_New18[[#This Row],[المدة المتبقية على انتهاء رخصة القيادة]]<30,\"تجديد\",\"😁\")),\"\")","v":"😁"},"0506101947","يوجد",null,null,"صيانة 810",null,null,null,null,"√",{"$f":"IFERROR(Truck_New18[[#This Row],[تاريخ انتهاء الفحص (ميلادي)]]-TODAY(),\"\")","v":142},{"$f":"IFERROR(Truck_New18[[#This Row],[تاريخ انتهاء رخصة السير(ميلادي)]]-TODAY(),\"\")","v":-143},{"$f":"IFERROR(Truck_New18[[#This Row],[تاريخ انتهاء كارت التشغيل (ميلادي)]]-TODAY(),\"\")","v":""},{"$f":"IFERROR(Truck_New18[[#This Row],[تاريخ انتهاء التأمين (ميلادي)]]-TODAY(),\"\")","v":120},{"$f":"IFERROR(Truck_New18[[#This Row],[انتهاء رخصة القيادة (هجري)]]-TODAY(),\"\")","v":""},{"$f":"IFERROR(Truck_New18[[#This Row],[تاريخ انتهاء التفويض (ميلادي)]]-TODAY(),\"\")","v":""}]
[{"$f":"IF(B25=\"\",\"\",SUBTOTAL(3,$B$3:B25))","v":23},"WW7","وايت مياه - اكتروس","Mercedes",2007,"فضي",7009429445,"ب ر ا  8909","WDB9302031L148045",77412710,"نقل خاص","20/10/1444",{"$f":"IFERROR(ConvertDate(Truck_New18[[#This Row],[تاريخ انتهاء الفحص (هجري)]]),\"\")","v":"10/05/2023"},{"$f":"IF(Truck_New18[[#This Row],[المدة المتبقية على انتهاء الفحص]]<1,\"منتهي\",IF(Truck_New18[[#This Row],[المدة المتبقية على انتهاء الفحص]]<30,\"تجديد\",IF(Truck_New18[[#This Row],[المدة المتبقية على انتهاء الفحص]]=\"\",\"\",\"😁\")))","v":"😁"},"20/10/1446",{"$f":"IFERROR(ConvertDate(Truck_New18[[#This Row],[تاريخ انتهاء رخصة السير(هجري)]]),\"\")","v":"18/04/2025"},{"$f":"IF(Truck_New18[[#This Row],[المدة المتبقية على انتهاء رخصة السير]]<1,\"منتهي\",IF(Truck_New18[[#This Row],[المدة المتبقية على انتهاء رخصة السير]]<30,\"تجديد\",IF(Truck_New18[[#This Row],[المدة المتبقية على انتهاء رخصة السير]]=\"\",\"\",\"😁\")))","v":"😁"},"لا يوجد ",{"$f":"IFERROR(ConvertDate(Truck_New18[[#This Row],[تاريخ انتهاء كارت التشغيل (هجري)]]),\"\")","v":""},{"$f":"IF(Truck_New18[[#This Row],[المدة المتبقية على انتهاء كارت التشغيل]]<1,\"منتهي\",IF(Truck_New18[[#This Row],[المدة المتبقية على انتهاء كارت التشغيل]]<30,\"تجديد\",IF(Truck_New18[[#This Row],[المدة المتبقية على انتهاء كارت التشغيل]]=\"\",\"\",\"😁\")))","v":""},{"$f":"Truck_New18[[#This Row],[تاريخ انتهاء التأمين (ميلادي)]]","v":"2023-02-08"},"2023-02-08",{"$f":"IFERROR(IF(Truck_New18[[#This Row],[المدة المتبيقة على انتهاء التامين]]<1,\"منتهي\",IF(Truck_New18[[#This Row],[المدة المتبيقة على انتهاء التامين]]<30,\"تجديد\",\"👌\")),\"\")","v":"👌"},"احمد محمود محمود محمد","مصر","18/01/1445",{"$f":"IFERROR(ConvertDate(Truck_New18[[#This Row],[تاريخ انتهاء التفويض (هجري)]]),\"\")","v":"04/08/2023"},{"$f":"IF(Truck_New18[[#This Row],[المدة المتبقية على انتهاء التفويض]]<1,\"منتهي\",IF(Truck_New18[[#This Row],[المدة المتبقية على انتهاء التفويض]]<30,\"تجديد\",IF(Truck_New18[[#This Row],[المدة المتبقية على انتهاء التفويض]]=\"\",\"\",\"😁\")))","v":"😁"},2511002400,"19/01/1449",{"$f":"IFERROR(ConvertDate(Truck_New18[[#This Row],[انتهاء رخصة القيادة (هجري)]]),\"\")","v":"23/06/2027"},{"$f":"IFERROR(IF(Truck_New18[[#This Row],[المدة المتبقية على انتهاء رخصة القيادة]]<1,\"منتهي\",IF(Truck_New18[[#This Row],[المدة المتبقية على انتهاء رخصة القيادة]]<30,\"تجديد\",\"😁\")),\"\")","v":"😁"},"0582648575","يوجد",null,null,"مشروع 806",null,null,null,null,"√",{"$f":"IFERROR(Truck_New18[[#This Row],[تاريخ انتهاء الفحص (ميلادي)]]-TODAY(),\"\")","v":211},{"$f":"IFERROR(Truck_New18[[#This Row],[تاريخ انتهاء رخصة السير(ميلادي)]]-TODAY(),\"\")","v":920},{"$f":"IFERROR(Truck_New18[[#This Row],[تاريخ انتهاء كارت التشغيل (ميلادي)]]-TODAY(),\"\")","v":""},{"$f":"IFERROR(Truck_New18[[#This Row],[تاريخ انتهاء التأمين (ميلادي)]]-TODAY(),\"\")","v":120},{"$f":"IFERROR(Truck_New18[[#This Row],[انتهاء رخصة القيادة (هجري)]]-TODAY(),\"\")","v":""},{"$f":"IFERROR(Truck_New18[[#This Row],[تاريخ انتهاء التفويض (ميلادي)]]-TODAY(),\"\")","v":297}]
[{"$f":"IF(B26=\"\",\"\",SUBTOTAL(3,$B$3:B26))","v":24},"WW8","وايت مياه - اكتروس","Mercedes",2007,"فضي",7009429445,"ب ر ا  8929","WDB9302031L151413",396412710,"نقل خاص","09/07/1444",{"$f":"IFERROR(ConvertDate(Truck_New18[[#This Row],[تاريخ انتهاء الفحص (هجري)]]),\"\")","v":"30/01/2023"},{"$f":"IF(Truck_New18[[#This Row],[المدة المتبقية على انتهاء الفحص]]<1,\"منتهي\",IF(Truck_New18[[#This Row],[المدة المتبقية على انتهاء الفحص]]<30,\"تجديد\",IF(Truck_New18[[#This Row],[المدة المتبقية على انتهاء الفحص]]=\"\",\"\",\"😁\")))","v":"😁"},"20/10/1446",{"$f":"IFERROR(ConvertDate(Truck_New18[[#This Row],[تاريخ انتهاء رخصة السير(هجري)]]),\"\")","v":"18/04/2025"},{"$f":"IF(Truck_New18[[#This Row],[المدة المتبقية على انتهاء رخصة السير]]<1,\"منتهي\",IF(Truck_New18[[#This Row],[المدة المتبقية على انتهاء رخصة السير]]<30,\"تجديد\",IF(Truck_New18[[#This Row],[المدة المتبقية على انتهاء رخصة السير]]=\"\",\"\",\"😁\")))","v":"😁"},"لا يوجد ",{"$f":"IFERROR(ConvertDate(Truck_New18[[#This Row],[تاريخ انتهاء كارت التشغيل (هجري)]]),\"\")","v":""},{"$f":"IF(Truck_New18[[#This Row],[المدة المتبقية على انتهاء كارت التشغيل]]<1,\"منتهي\",IF(Truck_New18[[#This Row],[المدة المتبقية على انتهاء كارت التشغيل]]<30,\"تجديد\",IF(Truck_New18[[#This Row],[المدة المتبقية على انتهاء كارت التشغيل]]=\"\",\"\",\"😁\")))","v":""},{"$f":"Truck_New18[[#This Row],[تاريخ انتهاء التأمين (ميلادي)]]","v":"2023-02-08"},"2023-02-08",{"$f":"IFERROR(IF(Truck_New18[[#This Row],[المدة المتبيقة على انتهاء التامين]]<1,\"منتهي\",IF(Truck_New18[[#This Row],[المدة المتبيقة على انتهاء التامين]]<30,\"تجديد\",\"👌\")),\"\")","v":"👌"},"رمزي","اليمن",null,{"$f":"IFERROR(ConvertDate(Truck_New18[[#This Row],[تاريخ انتهاء التفويض (هجري)]]),\"\")","v":""},{"$f":"IF(Truck_New18[[#This Row],[المدة المتبقية على انتهاء التفويض]]<1,\"منتهي\",IF(Truck_New18[[#This Row],[المدة المتبقية على انتهاء التفويض]]<30,\"تجديد\",IF(Truck_New18[[#This Row],[المدة المتبقية على انتهاء التفويض]]=\"\",\"\",\"😁\")))","v":""},2465326979,"16/03/1451",{"$f":"IFERROR(ConvertDate(Truck_New18[[#This Row],[انتهاء رخصة القيادة (هجري)]]),\"\")","v":"27/07/2029"},{"$f":"IFERROR(IF(Truck_New18[[#This Row],[المدة المتبقية على انتهاء رخصة القيادة]]<1,\"منتهي\",IF(Truck_New18[[#This Row],[المدة المتبقية على انتهاء رخصة القيادة]]<30,\"تجديد\",\"😁\")),\"\")","v":"😁"},"0559972692","يوجد",null,null,"مشروع 806","بدون رخصة بتوجيه م. عمرو",null,null,null,"√",{"$f":"IFERROR(Truck_New18[[#This Row],[تاريخ انتهاء الفحص (ميلادي)]]-TODAY(),\"\")","v":111},{"$f":"IFERROR(Truck_New18[[#This Row],[تاريخ انتهاء رخصة السير(ميلادي)]]-TODAY(),\"\")","v":920},{"$f":"IFERROR(Truck_New18[[#This Row],[تاريخ انتهاء كارت التشغيل (ميلادي)]]-TODAY(),\"\")","v":""},{"$f":"IFERROR(Truck_New18[[#This Row],[تاريخ انتهاء التأمين (ميلادي)]]-TODAY(),\"\")","v":120},{"$f":"IFERROR(Truck_New18[[#This Row],[انتهاء رخصة القيادة (هجري)]]-TODAY(),\"\")","v":""},{"$f":"IFERROR(Truck_New18[[#This Row],[تاريخ انتهاء التفويض (ميلادي)]]-TODAY(),\"\")","v":""}]
[{"$f":"IF(B27=\"\",\"\",SUBTOTAL(3,$B$3:B27))","v":25},"WW9","وايت مياه - اكتروس","Mercedes",2007,"رصاصي",7009429445,"ب ر ا  8927","WDB9302031L153554",17412710,"نقل خاص","10/08/1444",{"$f":"IFERROR(ConvertDate(Truck_New18[[#This Row],[تاريخ انتهاء الفحص (هجري)]]),\"\")","v":"02/03/2023"},{"$f":"IF(Truck_New18[[#This Row],[المدة المتبقية على انتهاء الفحص]]<1,\"منتهي\",IF(Truck_New18[[#This Row],[المدة المتبقية على انتهاء الفحص]]<30,\"تجديد\",IF(Truck_New18[[#This Row],[المدة المتبقية على انتهاء الفحص]]=\"\",\"\",\"😁\")))","v":"😁"},"20/10/1446",{"$f":"IFERROR(ConvertDate(Truck_New18[[#This Row],[تاريخ انتهاء رخصة السير(هجري)]]),\"\")","v":"18/04/2025"},{"$f":"IF(Truck_New18[[#This Row],[المدة المتبقية على انتهاء رخصة السير]]<1,\"منتهي\",IF(Truck_New18[[#This Row],[المدة المتبقية على انتهاء رخصة السير]]<30,\"تجديد\",IF(Truck_New18[[#This Row],[المدة المتبقية على انتهاء رخصة السير]]=\"\",\"\",\"😁\")))","v":"😁"},"لا يوجد ",{"$f":"IFERROR(ConvertDate(Truck_New18[[#This Row],[تاريخ انتهاء كارت التشغيل (هجري)]]),\"\")","v":""},{"$f":"IF(Truck_New18[[#This Row],[المدة المتبقية على انتهاء كارت التشغيل]]<1,\"منتهي\",IF(Truck_New18[[#This Row],[المدة المتبقية على انتهاء كارت التشغيل]]<30,\"تجديد\",IF(Truck_New18[[#This Row],[المدة المتبقية على انتهاء كارت التشغيل]]=\"\",\"\",\"😁\")))","v":""},{"$f":"Truck_New18[[#This Row],[تاريخ انتهاء التأمين (ميلادي)]]","v":"2023-02-08"},"2023-02-08",{"$f":"IFERROR(IF(Truck_New18[[#This Row],[المدة المتبيقة على انتهاء التامين]]<1,\"منتهي\",IF(Truck_New18[[#This Row],[المدة المتبيقة على انتهاء التامين]]<30,\"تجديد\",\"👌\")),\"\")","v":"👌"},"محمود حمدون الضوى","مصر",null,{"$f":"IFERROR(ConvertDate(Truck_New18[[#This Row],[تاريخ انتهاء التفويض (هجري)]]),\"\")","v":""},{"$f":"IF(Truck_New18[[#This Row],[المدة المتبقية على انتهاء التفويض]]<1,\"منتهي\",IF(Truck_New18[[#This Row],[المدة المتبقية على انتهاء التفويض]]<30,\"تجديد\",IF(Truck_New18[[#This Row],[المدة المتبقية على انتهاء التفويض]]=\"\",\"\",\"😁\")))","v":""},"A29801139","لا توجد / خارج الكفالة",{"$f":"IFERROR(ConvertDate(Truck_New18[[#This Row],[انتهاء رخصة القيادة (هجري)]]),\"\")","v":""},{"$f":"IFERROR(IF(Truck_New18[[#This Row],[المدة المتبقية على انتهاء رخصة القيادة]]<1,\"منتهي\",IF(Truck_New18[[#This Row],[المدة المتبقية على انتهاء رخصة القيادة]]<30,\"تجديد\",\"😁\")),\"\")","v":"😁"},null,"يوجد",null,null,"صيانة 810",null,null,null,null,"√",{"$f":"IFERROR(Truck_New18[[#This Row],[تاريخ انتهاء الفحص (ميلادي)]]-TODAY(),\"\")","v":142},{"$f":"IFERROR(Truck_New18[[#This Row],[تاريخ انتهاء رخصة السير(ميلادي)]]-TODAY(),\"\")","v":920},{"$f":"IFERROR(Truck_New18[[#This Row],[تاريخ انتهاء كارت التشغيل (ميلادي)]]-TODAY(),\"\")","v":""},{"$f":"IFERROR(Truck_New18[[#This Row],[تاريخ انتهاء التأمين (ميلادي)]]-TODAY(),\"\")","v":120},{"$f":"IFERROR(Truck_New18[[#This Row],[انتهاء رخصة القيادة (هجري)]]-TODAY(),\"\")","v":""},{"$f":"IFERROR(Truck_New18[[#This Row],[تاريخ انتهاء التفويض (ميلادي)]]-TODAY(),\"\")","v":""}]
[{"$f":"IF(B28=\"\",\"\",SUBTOTAL(3,$B$3:B28))","v":26},"WW10","وايت مياه - اكتروس","Mercedes",2007,"رصاصي",7009429445,"ب ر ا  8907","WDB9302031L237155",877412710,"نقل خاص","14/02/1444",{"$f":"IFERROR(ConvertDate(Truck_New18[[#This Row],[تاريخ انتهاء الفحص (هجري)]]),\"\")","v":"10/09/2022"},{"$f":"IF(Truck_New18[[#This Row],[المدة المتبقية على انتهاء الفحص]]<1,\"منتهي\",IF(Truck_New18[[#This Row],[المدة المتبقية على انتهاء الفحص]]<30,\"تجديد\",IF(Truck_New18[[#This Row],[المدة المتبقية على انتهاء الفحص]]=\"\",\"\",\"😁\")))","v":"منتهي"},"20/10/1446",{"$f":"IFERROR(ConvertDate(Truck_New18[[#This Row],[تاريخ انتهاء رخصة السير(هجري)]]),\"\")","v":"18/04/2025"},{"$f":"IF(Truck_New18[[#This Row],[المدة المتبقية على انتهاء رخصة السير]]<1,\"منتهي\",IF(Truck_New18[[#This Row],[المدة المتبقية على انتهاء رخصة السير]]<30,\"تجديد\",IF(Truck_New18[[#This Row],[المدة المتبقية على انتهاء رخصة السير]]=\"\",\"\",\"😁\")))","v":"😁"},"لا يوجد ",{"$f":"IFERROR(ConvertDate(Truck_New18[[#This Row],[تاريخ انتهاء كارت التشغيل (هجري)]]),\"\")","v":""},{"$f":"IF(Truck_New18[[#This Row],[المدة المتبقية على انتهاء كارت التشغيل]]<1,\"منتهي\",IF(Truck_New18[[#This Row],[المدة المتبقية على انتهاء كارت التشغيل]]<30,\"تجديد\",IF(Truck_New18[[#This Row],[المدة المتبقية على انتهاء كارت التشغيل]]=\"\",\"\",\"😁\")))","v":""},{"$f":"Truck_New18[[#This Row],[تاريخ انتهاء التأمين (ميلادي)]]","v":"2023-02-08"},"2023-02-08",{"$f":"IFERROR(IF(Truck_New18[[#This Row],[المدة المتبيقة على انتهاء التامين]]<1,\"منتهي\",IF(Truck_New18[[#This Row],[المدة المتبيقة على انتهاء التامين]]<30,\"تجديد\",\"👌\")),\"\")","v":"👌"},"ملت حسين محمد","بنغالي",null,{"$f":"IFERROR(ConvertDate(Truck_New18[[#This Row],[تاريخ انتهاء التفويض (هجري)]]),\"\")","v":""},{"$f":"IF(Truck_New18[[#This Row],[المدة المتبقية على انتهاء التفويض]]<1,\"منتهي\",IF(Truck_New18[[#This Row],[المدة المتبقية على انتهاء التفويض]]<30,\"تجديد\",IF(Truck_New18[[#This Row],[المدة المتبقية على انتهاء التفويض]]=\"\",\"\",\"😁\")))","v":""},null,null,{"$f":"IFERROR(ConvertDate(Truck_New18[[#This Row],[انتهاء رخصة القيادة (هجري)]]),\"\")","v":""},{"$f":"IFERROR(IF(Truck_New18[[#This Row],[المدة المتبقية على انتهاء رخصة القيادة]]<1,\"منتهي\",IF(Truck_New18[[#This Row],[المدة المتبقية على انتهاء رخصة القيادة]]<30,\"تجديد\",\"😁\")),\"\")","v":"منتهي"},"0550625592",null,null,null,"مشروع 806 فرقة 3 سمر",null,null,null,null,"ꭓ",{"$f":"IFERROR(Truck_New18[[#This Row],[تاريخ انتهاء الفحص (ميلادي)]]-TODAY(),\"\")","v":-31},{"$f":"IFERROR(Truck_New18[[#This Row],[تاريخ انتهاء رخصة السير(ميلادي)]]-TODAY(),\"\")","v":920},{"$f":"IFERROR(Truck_New18[[#This Row],[تاريخ انتهاء كارت التشغيل (ميلادي)]]-TODAY(),\"\")","v":""},{"$f":"IFERROR(Truck_New18[[#This Row],[تاريخ انتهاء التأمين (ميلادي)]]-TODAY(),\"\")","v":120},{"$f":"IFERROR(Truck_New18[[#This Row],[انتهاء رخصة القيادة (هجري)]]-TODAY(),\"\")","v":-44845},{"$f":"IFERROR(Truck_New18[[#This Row],[تاريخ انتهاء التفويض (ميلادي)]]-TODAY(),\"\")","v":""}]
[{"$f":"IF(B29=\"\",\"\",SUBTOTAL(3,$B$3:B29))","v":27},"WW11","وايت مياه - اكتروس","Mercedes",2008,"أبيض",7009429445,"ب ر ا  8922","WDB9302131L271653",447412710,"نقل خاص","14/07/1444",{"$f":"IFERROR(ConvertDate(Truck_New18[[#This Row],[تاريخ انتهاء الفحص (هجري)]]),\"\")","v":"04/02/2023"},{"$f":"IF(Truck_New18[[#This Row],[المدة المتبقية على انتهاء الفحص]]<1,\"منتهي\",IF(Truck_New18[[#This Row],[المدة المتبقية على انتهاء الفحص]]<30,\"تجديد\",IF(Truck_New18[[#This Row],[المدة المتبقية على انتهاء الفحص]]=\"\",\"\",\"😁\")))","v":"😁"},"20/10/1446",{"$f":"IFERROR(ConvertDate(Truck_New18[[#This Row],[تاريخ انتهاء رخصة السير(هجري)]]),\"\")","v":"18/04/2025"},{"$f":"IF(Truck_New18[[#This Row],[المدة المتبقية على انتهاء رخصة السير]]<1,\"منتهي\",IF(Truck_New18[[#This Row],[المدة المتبقية على انتهاء رخصة السير]]<30,\"تجديد\",IF(Truck_New18[[#This Row],[المدة المتبقية على انتهاء رخصة السير]]=\"\",\"\",\"😁\")))","v":"😁"},"لا يوجد ",{"$f":"IFERROR(ConvertDate(Truck_New18[[#This Row],[تاريخ انتهاء كارت التشغيل (هجري)]]),\"\")","v":""},{"$f":"IF(Truck_New18[[#This Row],[المدة المتبقية على انتهاء كارت التشغيل]]<1,\"منتهي\",IF(Truck_New18[[#This Row],[المدة المتبقية على انتهاء كارت التشغيل]]<30,\"تجديد\",IF(Truck_New18[[#This Row],[المدة المتبقية على انتهاء كارت التشغيل]]=\"\",\"\",\"😁\")))","v":""},{"$f":"Truck_New18[[#This Row],[تاريخ انتهاء التأمين (ميلادي)]]","v":"2023-02-08"},"2023-02-08",{"$f":"IFERROR(IF(Truck_New18[[#This Row],[المدة المتبيقة على انتهاء التامين]]<1,\"منتهي\",IF(Truck_New18[[#This Row],[المدة المتبيقة على انتهاء التامين]]<30,\"تجديد\",\"👌\")),\"\")","v":"👌"},"خالد محمد احمد","اليمن",null,{"$f":"IFERROR(ConvertDate(Truck_New18[[#This Row],[تاريخ انتهاء التفويض (هجري)]]),\"\")","v":""},{"$f":"IF(Truck_New18[[#This Row],[المدة المتبقية على انتهاء التفويض]]<1,\"منتهي\",IF(Truck_New18[[#This Row],[المدة المتبقية على انتهاء التفويض]]<30,\"تجديد\",IF(Truck_New18[[#This Row],[المدة المتبقية على انتهاء التفويض]]=\"\",\"\",\"😁\")))","v":""},2520527975,"لا توجد / خارج الكفالة",{"$f":"IFERROR(ConvertDate(Truck_New18[[#This Row],[انتهاء رخصة القيادة (هجري)]]),\"\")","v":""},{"$f":"IFERROR(IF(Truck_New18[[#This Row],[المدة المتبقية على انتهاء رخصة القيادة]]<1,\"منتهي\",IF(Truck_New18[[#This Row],[المدة المتبقية على انتهاء رخصة القيادة]]<30,\"تجديد\",\"😁\")),\"\")","v":"😁"},"0566682541","يوجد",null,null,"صيانة 810","بدون رخصة توجيه م. ناجي",null,null,null,"ꭓ",{"$f":"IFERROR(Truck_New18[[#This Row],[تاريخ انتهاء الفحص (ميلادي)]]-TODAY(),\"\")","v":116},{"$f":"IFERROR(Truck_New18[[#This Row],[تاريخ انتهاء رخصة السير(ميلادي)]]-TODAY(),\"\")","v":920},{"$f":"IFERROR(Truck_New18[[#This Row],[تاريخ انتهاء كارت التشغيل (ميلادي)]]-TODAY(),\"\")","v":""},{"$f":"IFERROR(Truck_New18[[#This Row],[تاريخ انتهاء التأمين (ميلادي)]]-TODAY(),\"\")","v":120},{"$f":"IFERROR(Truck_New18[[#This Row],[انتهاء رخصة القيادة (هجري)]]-TODAY(),\"\")","v":""},{"$f":"IFERROR(Truck_New18[[#This Row],[تاريخ انتهاء التفويض (ميلادي)]]-TODAY(),\"\")","v":""}]
[{"$f":"IF(B30=\"\",\"\",SUBTOTAL(3,$B$3:B30))","v":28},"WW12","وايت مياه - اكتروس","Mercedes",2007,"رصاصي",7009429445,"ب ر ا 8969","WDB9302031L228411",787412710,"نقل خاص","04/09/1444",{"$f":"IFERROR(ConvertDate(Truck_New18[[#This Row],[تاريخ انتهاء الفحص (هجري)]]),\"\")","v":"25/03/2023"},{"$f":"IF(Truck_New18[[#This Row],[المدة المتبقية على انتهاء الفحص]]<1,\"منتهي\",IF(Truck_New18[[#This Row],[المدة المتبقية على انتهاء الفحص]]<30,\"تجديد\",IF(Truck_New18[[#This Row],[المدة المتبقية على انتهاء الفحص]]=\"\",\"\",\"😁\")))","v":"😁"},"20/10/1446",{"$f":"IFERROR(ConvertDate(Truck_New18[[#This Row],[تاريخ انتهاء رخصة السير(هجري)]]),\"\")","v":"18/04/2025"},{"$f":"IF(Truck_New18[[#This Row],[المدة المتبقية على انتهاء رخصة السير]]<1,\"منتهي\",IF(Truck_New18[[#This Row],[المدة المتبقية على انتهاء رخصة السير]]<30,\"تجديد\",IF(Truck_New18[[#This Row],[المدة المتبقية على انتهاء رخصة السير]]=\"\",\"\",\"😁\")))","v":"😁"},"لا يوجد ",{"$f":"IFERROR(ConvertDate(Truck_New18[[#This Row],[تاريخ انتهاء كارت التشغيل (هجري)]]),\"\")","v":""},{"$f":"IF(Truck_New18[[#This Row],[المدة المتبقية على انتهاء كارت التشغيل]]<1,\"منتهي\",IF(Truck_New18[[#This Row],[المدة المتبقية على انتهاء كارت التشغيل]]<30,\"تجديد\",IF(Truck_New18[[#This Row],[المدة المتبقية على انتهاء كارت التشغيل]]=\"\",\"\",\"😁\")))","v":""},{"$f":"Truck_New18[[#This Row],[تاريخ انتهاء التأمين (ميلادي)]]","v":"2023-02-08"},"2023-02-08",{"$f":"IFERROR(IF(Truck_New18[[#This Row],[المدة المتبيقة على انتهاء التامين]]<1,\"منتهي\",IF(Truck_New18[[#This Row],[المدة المتبيقة على انتهاء التامين]]<30,\"تجديد\",\"👌\")),\"\")","v":"👌"},"عبد القادر المسلمي","اليمن",null,{"$f":"IFERROR(ConvertDate(Truck_New18[[#This Row],[تاريخ انتهاء التفويض (هجري)]]),\"\")","v":""},{"$f":"IF(Truck_New18[[#This Row],[المدة المتبقية على انتهاء التفويض]]<1,\"منتهي\",IF(Truck_New18[[#This Row],[المدة المتبقية على انتهاء التفويض]]<30,\"تجديد\",IF(Truck_New18[[#This Row],[المدة المتبقية على انتهاء التفويض]]=\"\",\"\",\"😁\")))","v":""},null,"خاصة / خارج الكفالة",{"$f":"IFERROR(ConvertDate(Truck_New18[[#This Row],[انتهاء رخصة القيادة (هجري)]]),\"\")","v":""},{"$f":"IFERROR(IF(Truck_New18[[#This Row],[المدة المتبقية على انتهاء رخصة القيادة]]<1,\"منتهي\",IF(Truck_New18[[#This Row],[المدة المتبقية على انتهاء رخصة القيادة]]<30,\"تجديد\",\"😁\")),\"\")","v":"😁"},null,null,null,null,"صيانة 810",null,null,null,null,"√",{"$f":"IFERROR(Truck_New18[[#This Row],[تاريخ انتهاء الفحص (ميلادي)]]-TODAY(),\"\")","v":165},{"$f":"IFERROR(Truck_New18[[#This Row],[تاريخ انتهاء رخصة السير(ميلادي)]]-TODAY(),\"\")","v":920},{"$f":"IFERROR(Truck_New18[[#This Row],[تاريخ انتهاء كارت التشغيل (ميلادي)]]-TODAY(),\"\")","v":""},{"$f":"IFERROR(Truck_New18[[#This Row],[تاريخ انتهاء التأمين (ميلادي)]]-TODAY(),\"\")","v":120},{"$f":"IFERROR(Truck_New18[[#This Row],[انتهاء رخصة القيادة (هجري)]]-TODAY(),\"\")","v":""},{"$f":"IFERROR(Truck_New18[[#This Row],[تاريخ انتهاء التفويض (ميلادي)]]-TODAY(),\"\")","v":""}]
[{"$f":"IF(B31=\"\",\"\",SUBTOTAL(3,$B$3:B31))","v":29},"KR1","ساني / كرين","SANI",2014,"أصفر - أحمر",7009429445,"ا ا ح  4400","LFCNPG6P7E2001805",701822410,"معدات ثقيلة/اشغال عامة",null,{"$f":"IFERROR(ConvertDate(Truck_New18[[#This Row],[تاريخ انتهاء الفحص (هجري)]]),\"\")","v":""},{"$f":"IF(Truck_New18[[#This Row],[المدة المتبقية على انتهاء الفحص]]<1,\"منتهي\",IF(Truck_New18[[#This Row],[المدة المتبقية على انتهاء الفحص]]<30,\"تجديد\",IF(Truck_New18[[#This Row],[المدة المتبقية على انتهاء الفحص]]=\"\",\"\",\"😁\")))","v":""},"20/06/1442",{"$f":"IFERROR(ConvertDate(Truck_New18[[#This Row],[تاريخ انتهاء رخصة السير(هجري)]]),\"\")","v":"02/02/2021"},{"$f":"IF(Truck_New18[[#This Row],[المدة المتبقية على انتهاء رخصة السير]]<1,\"منتهي\",IF(Truck_New18[[#This Row],[المدة المتبقية على انتهاء رخصة السير]]<30,\"تجديد\",IF(Truck_New18[[#This Row],[المدة المتبقية على انتهاء رخصة السير]]=\"\",\"\",\"😁\")))","v":"منتهي"},null,{"$f":"IFERROR(ConvertDate(Truck_New18[[#This Row],[تاريخ انتهاء كارت التشغيل (هجري)]]),\"\")","v":""},{"$f":"IF(Truck_New18[[#This Row],[المدة المتبقية على انتهاء كارت التشغيل]]<1,\"منتهي\",IF(Truck_New18[[#This Row],[المدة المتبقية على انتهاء كارت التشغيل]]<30,\"تجديد\",IF(Truck_New18[[#This Row],[المدة المتبقية على انتهاء كارت التشغيل]]=\"\",\"\",\"😁\")))","v":""},{"$f":"Truck_New18[[#This Row],[تاريخ انتهاء التأمين (ميلادي)]]","v":"2023-02-08"},"2023-02-08",{"$f":"IFERROR(IF(Truck_New18[[#This Row],[المدة المتبيقة على انتهاء التامين]]<1,\"منتهي\",IF(Truck_New18[[#This Row],[المدة المتبيقة على انتهاء التامين]]<30,\"تجديد\",\"👌\")),\"\")","v":"👌"},"امجد خان مصطفى","الهند",null,{"$f":"IFERROR(ConvertDate(Truck_New18[[#This Row],[تاريخ انتهاء التفويض (هجري)]]),\"\")","v":""},{"$f":"IF(Truck_New18[[#This Row],[المدة المتبقية على انتهاء التفويض]]<1,\"منتهي\",IF(Truck_New18[[#This Row],[المدة المتبقية على انتهاء التفويض]]<30,\"تجديد\",IF(Truck_New18[[#This Row],[المدة المتبقية على انتهاء التفويض]]=\"\",\"\",\"😁\")))","v":""},null,null,{"$f":"IFERROR(ConvertDate(Truck_New18[[#This Row],[انتهاء رخصة القيادة (هجري)]]),\"\")","v":""},{"$f":"IFERROR(IF(Truck_New18[[#This Row],[المدة المتبقية على انتهاء رخصة القيادة]]<1,\"منتهي\",IF(Truck_New18[[#This Row],[المدة المتبقية على انتهاء رخصة القيادة]]<30,\"تجديد\",\"😁\")),\"\")","v":"منتهي"},null,null,null,null,"مشروع بيشة",null,null,null,null,"√",{"$f":"IFERROR(Truck_New18[[#This Row],[تاريخ انتهاء الفحص (ميلادي)]]-TODAY(),\"\")","v":""},{"$f":"IFERROR(Truck_New18[[#This Row],[تاريخ انتهاء رخصة السير(ميلادي)]]-TODAY(),\"\")","v":-616},{"$f":"IFERROR(Truck_New18[[#This Row],[تاريخ انتهاء كارت التشغيل (ميلادي)]]-TODAY(),\"\")","v":""},{"$f":"IFERROR(Truck_New18[[#This Row],[تاريخ انتهاء التأمين (ميلادي)]]-TODAY(),\"\")","v":120},{"$f":"IFERROR(Truck_New18[[#This Row],[انتهاء رخصة القيادة (هجري)]]-TODAY(),\"\")","v":-44845},{"$f":"IFERROR(Truck_New18[[#This Row],[تاريخ انتهاء التفويض (ميلادي)]]-TODAY(),\"\")","v":""}]
[{"$f":"IF(B32=\"\",\"\",SUBTOTAL(3,$B$3:B32))","v":30},"SK4","شاحنة - عادي","Mercedes",1991,"أخضر",7009429445,"ا س ي  3533","WDB65913715714648",480400500,"نقل خاص","15/04/1443",{"$f":"IFERROR(ConvertDate(Truck_New18[[#This Row],[تاريخ انتهاء الفحص (هجري)]]),\"\")","v":"20/11/2021"},{"$f":"IF(Truck_New18[[#This Row],[المدة المتبقية على انتهاء الفحص]]<1,\"منتهي\",IF(Truck_New18[[#This Row],[المدة المتبقية على انتهاء الفحص]]<30,\"تجديد\",IF(Truck_New18[[#This Row],[المدة المتبقية على انتهاء الفحص]]=\"\",\"\",\"😁\")))","v":"منتهي"},"04/08/1445",{"$f":"IFERROR(ConvertDate(Truck_New18[[#This Row],[تاريخ انتهاء رخصة السير(هجري)]]),\"\")","v":"13/02/2024"},{"$f":"IF(Truck_New18[[#This Row],[المدة المتبقية على انتهاء رخصة السير]]<1,\"منتهي\",IF(Truck_New18[[#This Row],[المدة المتبقية على انتهاء رخصة السير]]<30,\"تجديد\",IF(Truck_New18[[#This Row],[المدة المتبقية على انتهاء رخصة السير]]=\"\",\"\",\"😁\")))","v":"😁"},"03/02/1439",{"$f":"IFERROR(ConvertDate(Truck_New18[[#This Row],[تاريخ انتهاء كارت التشغيل (هجري)]]),\"\")","v":"23/10/2017"},{"$f":"IF(Truck_New18[[#This Row],[المدة المتبقية على انتهاء كارت التشغيل]]<1,\"منتهي\",IF(Truck_New18[[#This Row],[المدة المتبقية على انتهاء كارت التشغيل]]<30,\"تجديد\",IF(Truck_New18[[#This Row],[المدة المتبقية على انتهاء كارت التشغيل]]=\"\",\"\",\"😁\")))","v":"منتهي"},{"$f":"Truck_New18[[#This Row],[تاريخ انتهاء التأمين (ميلادي)]]","v":"2023-02-08"},"2023-02-08",{"$f":"IFERROR(IF(Truck_New18[[#This Row],[المدة المتبيقة على انتهاء التامين]]<1,\"منتهي\",IF(Truck_New18[[#This Row],[المدة المتبيقة على انتهاء التامين]]<30,\"تجديد\",\"👌\")),\"\")","v":"👌"},"سفيان إبراهيم ","السودان",null,{"$f":"IFERROR(ConvertDate(Truck_New18[[#This Row],[تاريخ انتهاء التفويض (هجري)]]),\"\")","v":""},{"$f":"IF(Truck_New18[[#This Row],[المدة المتبقية على انتهاء التفويض]]<1,\"منتهي\",IF(Truck_New18[[#This Row],[المدة المتبقية على انتهاء التفويض]]<30,\"تجديد\",IF(Truck_New18[[#This Row],[المدة المتبقية على انتهاء التفويض]]=\"\",\"\",\"😁\")))","v":""},2511002582,null,{"$f":"IFERROR(ConvertDate(Truck_New18[[#This Row],[انتهاء رخصة القيادة (هجري)]]),\"\")","v":""},{"$f":"IFERROR(IF(Truck_New18[[#This Row],[المدة المتبقية على انتهاء رخصة القيادة]]<1,\"منتهي\",IF(Truck_New18[[#This Row],[المدة المتبقية على انتهاء رخصة القيادة]]<30,\"تجديد\",\"😁\")),\"\")","v":"منتهي"},"0504693452",null,null,null,"بيشة",null,null,null,null,"√",{"$f":"IFERROR(Truck_New18[[#This Row],[تاريخ انتهاء الفحص (ميلادي)]]-TODAY(),\"\")","v":-325},{"$f":"IFERROR(Truck_New18[[#This Row],[تاريخ انتهاء رخصة السير(ميلادي)]]-TODAY(),\"\")","v":490},{"$f":"IFERROR(Truck_New18[[#This Row],[تاريخ انتهاء كارت التشغيل (ميلادي)]]-TODAY(),\"\")","v":-1814},{"$f":"IFERROR(Truck_New18[[#This Row],[تاريخ انتهاء التأمين (ميلادي)]]-TODAY(),\"\")","v":120},{"$f":"IFERROR(Truck_New18[[#This Row],[انتهاء رخصة القيادة (هجري)]]-TODAY(),\"\")","v":-44845},{"$f":"IFERROR(Truck_New18[[#This Row],[تاريخ انتهاء التفويض (ميلادي)]]-TODAY(),\"\")","v":""}]
[{"$f":"IF(B33=\"\",\"\",SUBTOTAL(3,$B$3:B33))","v":31},"SK5","قلاب - عادي","Mercedes",1991,"برتقالي",7009429445,"ا د ك  6642","WDB62514815732151",386138800,"نقل خاص","15/04/1443",{"$f":"IFERROR(ConvertDate(Truck_New18[[#This Row],[تاريخ انتهاء الفحص (هجري)]]),\"\")","v":"20/11/2021"},{"$f":"IF(Truck_New18[[#This Row],[المدة المتبقية على انتهاء الفحص]]<1,\"منتهي\",IF(Truck_New18[[#This Row],[المدة المتبقية على انتهاء الفحص]]<30,\"تجديد\",IF(Truck_New18[[#This Row],[المدة المتبقية على انتهاء الفحص]]=\"\",\"\",\"😁\")))","v":"منتهي"},"04/08/1445",{"$f":"IFERROR(ConvertDate(Truck_New18[[#This Row],[تاريخ انتهاء رخصة السير(هجري)]]),\"\")","v":"13/02/2024"},{"$f":"IF(Truck_New18[[#This Row],[المدة المتبقية على انتهاء رخصة السير]]<1,\"منتهي\",IF(Truck_New18[[#This Row],[المدة المتبقية على انتهاء رخصة السير]]<30,\"تجديد\",IF(Truck_New18[[#This Row],[المدة المتبقية على انتهاء رخصة السير]]=\"\",\"\",\"😁\")))","v":"😁"},"17/08/1438",{"$f":"IFERROR(ConvertDate(Truck_New18[[#This Row],[تاريخ انتهاء كارت التشغيل (هجري)]]),\"\")","v":"13/05/2017"},{"$f":"IF(Truck_New18[[#This Row],[المدة المتبقية على انتهاء كارت التشغيل]]<1,\"منتهي\",IF(Truck_New18[[#This Row],[المدة المتبقية على انتهاء كارت التشغيل]]<30,\"تجديد\",IF(Truck_New18[[#This Row],[المدة المتبقية على انتهاء كارت التشغيل]]=\"\",\"\",\"😁\")))","v":"منتهي"},{"$f":"Truck_New18[[#This Row],[تاريخ انتهاء التأمين (ميلادي)]]","v":"2023-02-08"},"2023-02-08",{"$f":"IFERROR(IF(Truck_New18[[#This Row],[المدة المتبيقة على انتهاء التامين]]<1,\"منتهي\",IF(Truck_New18[[#This Row],[المدة المتبيقة على انتهاء التامين]]<30,\"تجديد\",\"👌\")),\"\")","v":"👌"},null,null,null,{"$f":"IFERROR(ConvertDate(Truck_New18[[#This Row],[تاريخ انتهاء التفويض (هجري)]]),\"\")","v":""},{"$f":"IF(Truck_New18[[#This Row],[المدة المتبقية على انتهاء التفويض]]<1,\"منتهي\",IF(Truck_New18[[#This Row],[المدة المتبقية على انتهاء التفويض]]<30,\"تجديد\",IF(Truck_New18[[#This Row],[المدة المتبقية على انتهاء التفويض]]=\"\",\"\",\"😁\")))","v":""},null,null,{"$f":"IFERROR(ConvertDate(Truck_New18[[#This Row],[انتهاء رخصة القيادة (هجري)]]),\"\")","v":""},{"$f":"IFERROR(IF(Truck_New18[[#This Row],[المدة المتبقية على انتهاء رخصة القيادة]]<1,\"منتهي\",IF(Truck_New18[[#This Row],[المدة المتبقية على انتهاء رخصة القيادة]]<30,\"تجديد\",\"😁\")),\"\")","v":"منتهي"},null,"لا يوجد",null,null,null,null,null,null,null,"√",{"$f":"IFERROR(Truck_New18[[#This Row],[تاريخ انتهاء الفحص (ميلادي)]]-TODAY(),\"\")","v":-325},{"$f":"IFERROR(Truck_New18[[#This Row],[تاريخ انتهاء رخصة السير(ميلادي)]]-TODAY(),\"\")","v":490},{"$f":"IFERROR(Truck_New18[[#This Row],[تاريخ انتهاء كارت التشغيل (ميلادي)]]-TODAY(),\"\")","v":-1977},{"$f":"IFERROR(Truck_New18[[#This Row],[تاريخ انتهاء التأمين (ميلادي)]]-TODAY(),\"\")","v":120},{"$f":"IFERROR(Truck_New18[[#This Row],[انتهاء رخصة القيادة (هجري)]]-TODAY(),\"\")","v":-44845},{"$f":"IFERROR(Truck_New18[[#This Row],[تاريخ انتهاء التفويض (ميلادي)]]-TODAY(),\"\")","v":""}]
[{"$f":"IF(B34=\"\",\"\",SUBTOTAL(3,$B$3:B34))","v":32},"SK7","شاحنة - سكس","Mercedes",1994,"أزرق",7009429445,"ا ا ك  3690","WDB6591421K061127",712565800,"نقل عام","13/05/1443",{"$f":"IFERROR(ConvertDate(Truck_New18[[#This Row],[تاريخ انتهاء الفحص (هجري)]]),\"\")","v":"17/12/2021"},{"$f":"IF(Truck_New18[[#This Row],[المدة المتبقية على انتهاء الفحص]]<1,\"منتهي\",IF(Truck_New18[[#This Row],[المدة المتبقية على انتهاء الفحص]]<30,\"تجديد\",IF(Truck_New18[[#This Row],[المدة المتبقية على انتهاء الفحص]]=\"\",\"\",\"😁\")))","v":"منتهي"},"28/03/1444",{"$f":"IFERROR(ConvertDate(Truck_New18[[#This Row],[تاريخ انتهاء رخصة السير(هجري)]]),\"\")","v":"23/10/2022"},{"$f":"IF(Truck_New18[[#This Row],[المدة المتبقية على انتهاء رخصة السير]]<1,\"منتهي\",IF(Truck_New18[[#This Row],[المدة المتبقية على انتهاء رخصة السير]]<30,\"تجديد\",IF(Truck_New18[[#This Row],[المدة المتبقية على انتهاء رخصة السير]]=\"\",\"\",\"😁\")))","v":"تجديد"},"28/03/1438",{"$f":"IFERROR(ConvertDate(Truck_New18[[#This Row],[تاريخ انتهاء كارت التشغيل (هجري)]]),\"\")","v":"27/12/2016"},{"$f":"IF(Truck_New18[[#This Row],[المدة المتبقية على انتهاء كارت التشغيل]]<1,\"منتهي\",IF(Truck_New18[[#This Row],[المدة المتبقية على انتهاء كارت التشغيل]]<30,\"تجديد\",IF(Truck_New18[[#This Row],[المدة المتبقية على انتهاء كارت التشغيل]]=\"\",\"\",\"😁\")))","v":"منتهي"},{"$f":"Truck_New18[[#This Row],[تاريخ انتهاء التأمين (ميلادي)]]","v":"2023-02-08"},"2023-02-08",{"$f":"IFERROR(IF(Truck_New18[[#This Row],[المدة المتبيقة على انتهاء التامين]]<1,\"منتهي\",IF(Truck_New18[[#This Row],[المدة المتبيقة على انتهاء التامين]]<30,\"تجديد\",\"👌\")),\"\")","v":"👌"},"محمد حنفي محمود محمود","مصري",null,{"$f":"IFERROR(ConvertDate(Truck_New18[[#This Row],[تاريخ انتهاء التفويض (هجري)]]),\"\")","v":""},{"$f":"IF(Truck_New18[[#This Row],[المدة المتبقية على انتهاء التفويض]]<1,\"منتهي\",IF(Truck_New18[[#This Row],[المدة المتبقية على انتهاء التفويض]]<30,\"تجديد\",IF(Truck_New18[[#This Row],[المدة المتبقية على انتهاء التفويض]]=\"\",\"\",\"😁\")))","v":""},2511001881,null,{"$f":"IFERROR(ConvertDate(Truck_New18[[#This Row],[انتهاء رخصة القيادة (هجري)]]),\"\")","v":""},{"$f":"IFERROR(IF(Truck_New18[[#This Row],[المدة المتبقية على انتهاء رخصة القيادة]]<1,\"منتهي\",IF(Truck_New18[[#This Row],[المدة المتبقية على انتهاء رخصة القيادة]]<30,\"تجديد\",\"😁\")),\"\")","v":"منتهي"},"0556781488",null,null,null,"بيشة",null,null,null,null,"√",{"$f":"IFERROR(Truck_New18[[#This Row],[تاريخ انتهاء الفحص (ميلادي)]]-TODAY(),\"\")","v":-298},{"$f":"IFERROR(Truck_New18[[#This Row],[تاريخ انتهاء رخصة السير(ميلادي)]]-TODAY(),\"\")","v":12},{"$f":"IFERROR(Truck_New18[[#This Row],[تاريخ انتهاء كارت التشغيل (ميلادي)]]-TODAY(),\"\")","v":-2114},{"$f":"IFERROR(Truck_New18[[#This Row],[تاريخ انتهاء التأمين (ميلادي)]]-TODAY(),\"\")","v":120},{"$f":"IFERROR(Truck_New18[[#This Row],[انتهاء رخصة القيادة (هجري)]]-TODAY(),\"\")","v":-44845},{"$f":"IFERROR(Truck_New18[[#This Row],[تاريخ انتهاء التفويض (ميلادي)]]-TODAY(),\"\")","v":""}]
[{"$f":"IF(B35=\"\",\"\",SUBTOTAL(3,$B$3:B35))","v":33},"SK8","مرسيدس / شاحنة عادي ","Mercedes",1994,"أخضر",7009429445,"ا د ك  6875","WDB6581491K036383",512238800,"نقل خاص","10/06/1443",{"$f":"IFERROR(ConvertDate(Truck_New18[[#This Row],[تاريخ انتهاء الفحص (هجري)]]),\"\")","v":"13/01/2022"},{"$f":"IF(Truck_New18[[#This Row],[المدة المتبقية على انتهاء الفحص]]<1,\"منتهي\",IF(Truck_New18[[#This Row],[المدة المتبقية على انتهاء الفحص]]<30,\"تجديد\",IF(Truck_New18[[#This Row],[المدة المتبقية على انتهاء الفحص]]=\"\",\"\",\"😁\")))","v":"منتهي"},"18/08/1444",{"$f":"IFERROR(ConvertDate(Truck_New18[[#This Row],[تاريخ انتهاء رخصة السير(هجري)]]),\"\")","v":"10/03/2023"},{"$f":"IF(Truck_New18[[#This Row],[المدة المتبقية على انتهاء رخصة السير]]<1,\"منتهي\",IF(Truck_New18[[#This Row],[المدة المتبقية على انتهاء رخصة السير]]<30,\"تجديد\",IF(Truck_New18[[#This Row],[المدة المتبقية على انتهاء رخصة السير]]=\"\",\"\",\"😁\")))","v":"😁"},"18/08/1441",{"$f":"IFERROR(ConvertDate(Truck_New18[[#This Row],[تاريخ انتهاء كارت التشغيل (هجري)]]),\"\")","v":"11/04/2020"},{"$f":"IF(Truck_New18[[#This Row],[المدة المتبقية على انتهاء كارت التشغيل]]<1,\"منتهي\",IF(Truck_New18[[#This Row],[المدة المتبقية على انتهاء كارت التشغيل]]<30,\"تجديد\",IF(Truck_New18[[#This Row],[المدة المتبقية على انتهاء كارت التشغيل]]=\"\",\"\",\"😁\")))","v":"منتهي"},{"$f":"Truck_New18[[#This Row],[تاريخ انتهاء التأمين (ميلادي)]]","v":"2023-02-08"},"2023-02-08",{"$f":"IFERROR(IF(Truck_New18[[#This Row],[المدة المتبيقة على انتهاء التامين]]<1,\"منتهي\",IF(Truck_New18[[#This Row],[المدة المتبيقة على انتهاء التامين]]<30,\"تجديد\",\"👌\")),\"\")","v":"👌"},"محمد انس محمد حسيم ","الهند",null,{"$f":"IFERROR(ConvertDate(Truck_New18[[#This Row],[تاريخ انتهاء التفويض (هجري)]]),\"\")","v":""},{"$f":"IF(Truck_New18[[#This Row],[المدة المتبقية على انتهاء التفويض]]<1,\"منتهي\",IF(Truck_New18[[#This Row],[المدة المتبقية على انتهاء التفويض]]<30,\"تجديد\",IF(Truck_New18[[#This Row],[المدة المتبقية على انتهاء التفويض]]=\"\",\"\",\"😁\")))","v":""},2384918872,null,{"$f":"IFERROR(ConvertDate(Truck_New18[[#This Row],[انتهاء رخصة القيادة (هجري)]]),\"\")","v":""},{"$f":"IFERROR(IF(Truck_New18[[#This Row],[المدة المتبقية على انتهاء رخصة القيادة]]<1,\"منتهي\",IF(Truck_New18[[#This Row],[المدة المتبقية على انتهاء رخصة القيادة]]<30,\"تجديد\",\"😁\")),\"\")","v":"منتهي"},null,null,null,null,"بيشة",null,null,null,null,"ꭓ",{"$f":"IFERROR(Truck_New18[[#This Row],[تاريخ انتهاء الفحص (ميلادي)]]-TODAY(),\"\")","v":-271},{"$f":"IFERROR(Truck_New18[[#This Row],[تاريخ انتهاء رخصة السير(ميلادي)]]-TODAY(),\"\")","v":150},{"$f":"IFERROR(Truck_New18[[#This Row],[تاريخ انتهاء كارت التشغيل (ميلادي)]]-TODAY(),\"\")","v":-913},{"$f":"IFERROR(Truck_New18[[#This Row],[تاريخ انتهاء التأمين (ميلادي)]]-TODAY(),\"\")","v":120},{"$f":"IFERROR(Truck_New18[[#This Row],[انتهاء رخصة القيادة (هجري)]]-TODAY(),\"\")","v":-44845},{"$f":"IFERROR(Truck_New18[[#This Row],[تاريخ انتهاء التفويض (ميلادي)]]-TODAY(),\"\")","v":""}]
[{"$f":"IF(B36=\"\",\"\",SUBTOTAL(3,$B$3:B36))","v":34},"SK11","قلاب - عادي","Mercedes",1995,"أبيض",7009429445,"ا ا هـ  8307","WDB64913655490155",452639200,"نقل عام","25/10/1440",{"$f":"IFERROR(ConvertDate(Truck_New18[[#This Row],[تاريخ انتهاء الفحص (هجري)]]),\"\")","v":"28/06/2019"},{"$f":"IF(Truck_New18[[#This Row],[المدة المتبقية على انتهاء الفحص]]<1,\"منتهي\",IF(Truck_New18[[#This Row],[المدة المتبقية على انتهاء الفحص]]<30,\"تجديد\",IF(Truck_New18[[#This Row],[المدة المتبقية على انتهاء الفحص]]=\"\",\"\",\"😁\")))","v":"منتهي"},"26/06/1443",{"$f":"IFERROR(ConvertDate(Truck_New18[[#This Row],[تاريخ انتهاء رخصة السير(هجري)]]),\"\")","v":"29/01/2022"},{"$f":"IF(Truck_New18[[#This Row],[المدة المتبقية على انتهاء رخصة السير]]<1,\"منتهي\",IF(Truck_New18[[#This Row],[المدة المتبقية على انتهاء رخصة السير]]<30,\"تجديد\",IF(Truck_New18[[#This Row],[المدة المتبقية على انتهاء رخصة السير]]=\"\",\"\",\"😁\")))","v":"منتهي"},"26/06/1440",{"$f":"IFERROR(ConvertDate(Truck_New18[[#This Row],[تاريخ انتهاء كارت التشغيل (هجري)]]),\"\")","v":"03/03/2019"},{"$f":"IF(Truck_New18[[#This Row],[المدة المتبقية على انتهاء كارت التشغيل]]<1,\"منتهي\",IF(Truck_New18[[#This Row],[المدة المتبقية على انتهاء كارت التشغيل]]<30,\"تجديد\",IF(Truck_New18[[#This Row],[المدة المتبقية على انتهاء كارت التشغيل]]=\"\",\"\",\"😁\")))","v":"منتهي"},{"$f":"Truck_New18[[#This Row],[تاريخ انتهاء التأمين (ميلادي)]]","v":"2023-02-08"},"2023-02-08",{"$f":"IFERROR(IF(Truck_New18[[#This Row],[المدة المتبيقة على انتهاء التامين]]<1,\"منتهي\",IF(Truck_New18[[#This Row],[المدة المتبيقة على انتهاء التامين]]<30,\"تجديد\",\"👌\")),\"\")","v":"👌"},null,null,null,{"$f":"IFERROR(ConvertDate(Truck_New18[[#This Row],[تاريخ انتهاء التفويض (هجري)]]),\"\")","v":""},{"$f":"IF(Truck_New18[[#This Row],[المدة المتبقية على انتهاء التفويض]]<1,\"منتهي\",IF(Truck_New18[[#This Row],[المدة المتبقية على انتهاء التفويض]]<30,\"تجديد\",IF(Truck_New18[[#This Row],[المدة المتبقية على انتهاء التفويض]]=\"\",\"\",\"😁\")))","v":""},null,null,{"$f":"IFERROR(ConvertDate(Truck_New18[[#This Row],[انتهاء رخصة القيادة (هجري)]]),\"\")","v":""},{"$f":"IFERROR(IF(Truck_New18[[#This Row],[المدة المتبقية على انتهاء رخصة القيادة]]<1,\"منتهي\",IF(Truck_New18[[#This Row],[المدة المتبقية على انتهاء رخصة القيادة]]<30,\"تجديد\",\"😁\")),\"\")","v":"منتهي"},null,null,null,null,"الصبيخة",null,null,null,null,"√",{"$f":"IFERROR(Truck_New18[[#This Row],[تاريخ انتهاء الفحص (ميلادي)]]-TODAY(),\"\")","v":-1201},{"$f":"IFERROR(Truck_New18[[#This Row],[تاريخ انتهاء رخصة السير(ميلادي)]]-TODAY(),\"\")","v":-255},{"$f":"IFERROR(Truck_New18[[#This Row],[تاريخ انتهاء كارت التشغيل (ميلادي)]]-TODAY(),\"\")","v":-1318},{"$f":"IFERROR(Truck_New18[[#This Row],[تاريخ انتهاء التأمين (ميلادي)]]-TODAY(),\"\")","v":120},{"$f":"IFERROR(Truck_New18[[#This Row],[انتهاء رخصة القيادة (هجري)]]-TODAY(),\"\")","v":-44845},{"$f":"IFERROR(Truck_New18[[#This Row],[تاريخ انتهاء التفويض (ميلادي)]]-TODAY(),\"\")","v":""}]
[{"$f":"IF(B37=\"\",\"\",SUBTOTAL(3,$B$3:B37))","v":35},"SK13","شاحنة - عادي","Mercedes",1991,"رصاصي",7009429445,"ا ا ك  3692","WDB65913715566499",621565800,"نقل عام","18/01/1444",{"$f":"IFERROR(ConvertDate(Truck_New18[[#This Row],[تاريخ انتهاء الفحص (هجري)]]),\"\")","v":"15/08/2022"},{"$f":"IF(Truck_New18[[#This Row],[المدة المتبقية على انتهاء الفحص]]<1,\"منتهي\",IF(Truck_New18[[#This Row],[المدة المتبقية على انتهاء الفحص]]<30,\"تجديد\",IF(Truck_New18[[#This Row],[المدة المتبقية على انتهاء الفحص]]=\"\",\"\",\"😁\")))","v":"منتهي"},"28/03/1444",{"$f":"IFERROR(ConvertDate(Truck_New18[[#This Row],[تاريخ انتهاء رخصة السير(هجري)]]),\"\")","v":"23/10/2022"},{"$f":"IF(Truck_New18[[#This Row],[المدة المتبقية على انتهاء رخصة السير]]<1,\"منتهي\",IF(Truck_New18[[#This Row],[المدة المتبقية على انتهاء رخصة السير]]<30,\"تجديد\",IF(Truck_New18[[#This Row],[المدة المتبقية على انتهاء رخصة السير]]=\"\",\"\",\"😁\")))","v":"تجديد"},"03/02/1439",{"$f":"IFERROR(ConvertDate(Truck_New18[[#This Row],[تاريخ انتهاء كارت التشغيل (هجري)]]),\"\")","v":"23/10/2017"},{"$f":"IF(Truck_New18[[#This Row],[المدة المتبقية على انتهاء كارت التشغيل]]<1,\"منتهي\",IF(Truck_New18[[#This Row],[المدة المتبقية على انتهاء كارت التشغيل]]<30,\"تجديد\",IF(Truck_New18[[#This Row],[المدة المتبقية على انتهاء كارت التشغيل]]=\"\",\"\",\"😁\")))","v":"منتهي"},{"$f":"Truck_New18[[#This Row],[تاريخ انتهاء التأمين (ميلادي)]]","v":"2023-02-08"},"2023-02-08",{"$f":"IFERROR(IF(Truck_New18[[#This Row],[المدة المتبيقة على انتهاء التامين]]<1,\"منتهي\",IF(Truck_New18[[#This Row],[المدة المتبيقة على انتهاء التامين]]<30,\"تجديد\",\"👌\")),\"\")","v":"👌"},"جنات جل أختراي","باكستان",null,{"$f":"IFERROR(ConvertDate(Truck_New18[[#This Row],[تاريخ انتهاء التفويض (هجري)]]),\"\")","v":""},{"$f":"IF(Truck_New18[[#This Row],[المدة المتبقية على انتهاء التفويض]]<1,\"منتهي\",IF(Truck_New18[[#This Row],[المدة المتبقية على انتهاء التفويض]]<30,\"تجديد\",IF(Truck_New18[[#This Row],[المدة المتبقية على انتهاء التفويض]]=\"\",\"\",\"😁\")))","v":""},null,null,{"$f":"IFERROR(ConvertDate(Truck_New18[[#This Row],[انتهاء رخصة القيادة (هجري)]]),\"\")","v":""},{"$f":"IFERROR(IF(Truck_New18[[#This Row],[المدة المتبقية على انتهاء رخصة القيادة]]<1,\"منتهي\",IF(Truck_New18[[#This Row],[المدة المتبقية على انتهاء رخصة القيادة]]<30,\"تجديد\",\"😁\")),\"\")","v":"منتهي"},"0530701942",null,null,null,"بيشة ",null,null,null,null,"√",{"$f":"IFERROR(Truck_New18[[#This Row],[تاريخ انتهاء الفحص (ميلادي)]]-TODAY(),\"\")","v":-57},{"$f":"IFERROR(Truck_New18[[#This Row],[تاريخ انتهاء رخصة السير(ميلادي)]]-TODAY(),\"\")","v":12},{"$f":"IFERROR(Truck_New18[[#This Row],[تاريخ انتهاء كارت التشغيل (ميلادي)]]-TODAY(),\"\")","v":-1814},{"$f":"IFERROR(Truck_New18[[#This Row],[تاريخ انتهاء التأمين (ميلادي)]]-TODAY(),\"\")","v":120},{"$f":"IFERROR(Truck_New18[[#This Row],[انتهاء رخصة القيادة (هجري)]]-TODAY(),\"\")","v":-44845},{"$f":"IFERROR(Truck_New18[[#This Row],[تاريخ انتهاء التفويض (ميلادي)]]-TODAY(),\"\")","v":""}]
[{"$f":"IF(B38=\"\",\"\",SUBTOTAL(3,$B$3:B38))","v":36},"WK1","شاحنة - عادي","Mercedes",1975,"رصاصي",7009429445,"ا ب و  8314","000013802",235205200,"نقل عام","03/1434",{"$f":"IFERROR(ConvertDate(Truck_New18[[#This Row],[تاريخ انتهاء الفحص (هجري)]]),\"\")","v":"12/01/2013"},{"$f":"IF(Truck_New18[[#This Row],[المدة المتبقية على انتهاء الفحص]]<1,\"منتهي\",IF(Truck_New18[[#This Row],[المدة المتبقية على انتهاء الفحص]]<30,\"تجديد\",IF(Truck_New18[[#This Row],[المدة المتبقية على انتهاء الفحص]]=\"\",\"\",\"😁\")))","v":"منتهي"},"21/07/1442",{"$f":"IFERROR(ConvertDate(Truck_New18[[#This Row],[تاريخ انتهاء رخصة السير(هجري)]]),\"\")","v":"04/03/2021"},{"$f":"IF(Truck_New18[[#This Row],[المدة المتبقية على انتهاء رخصة السير]]<1,\"منتهي\",IF(Truck_New18[[#This Row],[المدة المتبقية على انتهاء رخصة السير]]<30,\"تجديد\",IF(Truck_New18[[#This Row],[المدة المتبقية على انتهاء رخصة السير]]=\"\",\"\",\"😁\")))","v":"منتهي"},"04/02/1436",{"$f":"IFERROR(ConvertDate(Truck_New18[[#This Row],[تاريخ انتهاء كارت التشغيل (هجري)]]),\"\")","v":"26/11/2014"},{"$f":"IF(Truck_New18[[#This Row],[المدة المتبقية على انتهاء كارت التشغيل]]<1,\"منتهي\",IF(Truck_New18[[#This Row],[المدة المتبقية على انتهاء كارت التشغيل]]<30,\"تجديد\",IF(Truck_New18[[#This Row],[المدة المتبقية على انتهاء كارت التشغيل]]=\"\",\"\",\"😁\")))","v":"منتهي"},{"$f":"Truck_New18[[#This Row],[تاريخ انتهاء التأمين (ميلادي)]]","v":"2023-02-08"},"2023-02-08",{"$f":"IFERROR(IF(Truck_New18[[#This Row],[المدة المتبيقة على انتهاء التامين]]<1,\"منتهي\",IF(Truck_New18[[#This Row],[المدة المتبيقة على انتهاء التامين]]<30,\"تجديد\",\"👌\")),\"\")","v":"👌"},null,null,null,{"$f":"IFERROR(ConvertDate(Truck_New18[[#This Row],[تاريخ انتهاء التفويض (هجري)]]),\"\")","v":""},{"$f":"IF(Truck_New18[[#This Row],[المدة المتبقية على انتهاء التفويض]]<1,\"منتهي\",IF(Truck_New18[[#This Row],[المدة المتبقية على انتهاء التفويض]]<30,\"تجديد\",IF(Truck_New18[[#This Row],[المدة المتبقية على انتهاء التفويض]]=\"\",\"\",\"😁\")))","v":""},null,null,{"$f":"IFERROR(ConvertDate(Truck_New18[[#This Row],[انتهاء رخصة القيادة (هجري)]]),\"\")","v":""},{"$f":"IFERROR(IF(Truck_New18[[#This Row],[المدة المتبقية على انتهاء رخصة القيادة]]<1,\"منتهي\",IF(Truck_New18[[#This Row],[المدة المتبقية على انتهاء رخصة القيادة]]<30,\"تجديد\",\"😁\")),\"\")","v":"منتهي"},null,null,null,null,"مشروع بيشة",null,null,null,null,"√",{"$f":"IFERROR(Truck_New18[[#This Row],[تاريخ انتهاء الفحص (ميلادي)]]-TODAY(),\"\")","v":-3559},{"$f":"IFERROR(Truck_New18[[#This Row],[تاريخ انتهاء رخصة السير(ميلادي)]]-TODAY(),\"\")","v":-586},{"$f":"IFERROR(Truck_New18[[#This Row],[تاريخ انتهاء كارت التشغيل (ميلادي)]]-TODAY(),\"\")","v":-2876},{"$f":"IFERROR(Truck_New18[[#This Row],[تاريخ انتهاء التأمين (ميلادي)]]-TODAY(),\"\")","v":120},{"$f":"IFERROR(Truck_New18[[#This Row],[انتهاء رخصة القيادة (هجري)]]-TODAY(),\"\")","v":-44845},{"$f":"IFERROR(Truck_New18[[#This Row],[تاريخ انتهاء التفويض (ميلادي)]]-TODAY(),\"\")","v":""}]
[{"$f":"IF(B39=\"\",\"\",SUBTOTAL(3,$B$3:B39))","v":37},"MC1","مرسيدس / راس","Mercedes",1981,"أزرق",7009429445,"ا ا هـ    5588","39544214764356",559298200,"نقل عام","07/1438",{"$f":"IFERROR(ConvertDate(Truck_New18[[#This Row],[تاريخ انتهاء الفحص (هجري)]]),\"\")","v":"28/03/2017"},{"$f":"IF(Truck_New18[[#This Row],[المدة المتبقية على انتهاء الفحص]]<1,\"منتهي\",IF(Truck_New18[[#This Row],[المدة المتبقية على انتهاء الفحص]]<30,\"تجديد\",IF(Truck_New18[[#This Row],[المدة المتبقية على انتهاء الفحص]]=\"\",\"\",\"😁\")))","v":"منتهي"},"04/11/1442",{"$f":"IFERROR(ConvertDate(Truck_New18[[#This Row],[تاريخ انتهاء رخصة السير(هجري)]]),\"\")","v":"13/06/2021"},{"$f":"IF(Truck_New18[[#This Row],[المدة المتبقية على انتهاء رخصة السير]]<1,\"منتهي\",IF(Truck_New18[[#This Row],[المدة المتبقية على انتهاء رخصة السير]]<30,\"تجديد\",IF(Truck_New18[[#This Row],[المدة المتبقية على انتهاء رخصة السير]]=\"\",\"\",\"😁\")))","v":"منتهي"},"03/02/1439",{"$f":"IFERROR(ConvertDate(Truck_New18[[#This Row],[تاريخ انتهاء كارت التشغيل (هجري)]]),\"\")","v":"23/10/2017"},{"$f":"IF(Truck_New18[[#This Row],[المدة المتبقية على انتهاء كارت التشغيل]]<1,\"منتهي\",IF(Truck_New18[[#This Row],[المدة المتبقية على انتهاء كارت التشغيل]]<30,\"تجديد\",IF(Truck_New18[[#This Row],[المدة المتبقية على انتهاء كارت التشغيل]]=\"\",\"\",\"😁\")))","v":"منتهي"},{"$f":"Truck_New18[[#This Row],[تاريخ انتهاء التأمين (ميلادي)]]","v":"2023-02-08"},"2023-02-08",{"$f":"IFERROR(IF(Truck_New18[[#This Row],[المدة المتبيقة على انتهاء التامين]]<1,\"منتهي\",IF(Truck_New18[[#This Row],[المدة المتبيقة على انتهاء التامين]]<30,\"تجديد\",\"👌\")),\"\")","v":"👌"},null,null,null,{"$f":"IFERROR(ConvertDate(Truck_New18[[#This Row],[تاريخ انتهاء التفويض (هجري)]]),\"\")","v":""},{"$f":"IF(Truck_New18[[#This Row],[المدة المتبقية على انتهاء التفويض]]<1,\"منتهي\",IF(Truck_New18[[#This Row],[المدة المتبقية على انتهاء التفويض]]<30,\"تجديد\",IF(Truck_New18[[#This Row],[المدة المتبقية على انتهاء التفويض]]=\"\",\"\",\"😁\")))","v":""},null,null,{"$f":"IFERROR(ConvertDate(Truck_New18[[#This Row],[انتهاء رخصة القيادة (هجري)]]),\"\")","v":""},{"$f":"IFERROR(IF(Truck_New18[[#This Row],[المدة المتبقية على انتهاء رخصة القيادة]]<1,\"منتهي\",IF(Truck_New18[[#This Row],[المدة المتبقية على انتهاء رخصة القيادة]]<30,\"تجديد\",\"😁\")),\"\")","v":"منتهي"},null,null,null,null,null,null,null,null,null,"√",{"$f":"IFERROR(Truck_New18[[#This Row],[تاريخ انتهاء الفحص (ميلادي)]]-TODAY(),\"\")","v":-2023},{"$f":"IFERROR(Truck_New18[[#This Row],[تاريخ انتهاء رخصة السير(ميلادي)]]-TODAY(),\"\")","v":-485},{"$f":"IFERROR(Truck_New18[[#This Row],[تاريخ انتهاء كارت التشغيل (ميلادي)]]-TODAY(),\"\")","v":-1814},{"$f":"IFERROR(Truck_New18[[#This Row],[تاريخ انتهاء التأمين (ميلادي)]]-TODAY(),\"\")","v":120},{"$f":"IFERROR(Truck_New18[[#This Row],[انتهاء رخصة القيادة (هجري)]]-TODAY(),\"\")","v":-44845},{"$f":"IFERROR(Truck_New18[[#This Row],[تاريخ انتهاء التفويض (ميلادي)]]-TODAY(),\"\")","v":""}]
[{"$f":"IF(B40=\"\",\"\",SUBTOTAL(3,$B$3:B40))","v":38},"MC2","مرسيدس","Mercedes",1975,"بيج",7009429445,"ا ا م    8215","3463111420518",254105200,"نقل عام",null,{"$f":"IFERROR(ConvertDate(Truck_New18[[#This Row],[تاريخ انتهاء الفحص (هجري)]]),\"\")","v":""},{"$f":"IF(Truck_New18[[#This Row],[المدة المتبقية على انتهاء الفحص]]<1,\"منتهي\",IF(Truck_New18[[#This Row],[المدة المتبقية على انتهاء الفحص]]<30,\"تجديد\",IF(Truck_New18[[#This Row],[المدة المتبقية على انتهاء الفحص]]=\"\",\"\",\"😁\")))","v":""},null,{"$f":"IFERROR(ConvertDate(Truck_New18[[#This Row],[تاريخ انتهاء رخصة السير(هجري)]]),\"\")","v":""},{"$f":"IF(Truck_New18[[#This Row],[المدة المتبقية على انتهاء رخصة السير]]<1,\"منتهي\",IF(Truck_New18[[#This Row],[المدة المتبقية على انتهاء رخصة السير]]<30,\"تجديد\",IF(Truck_New18[[#This Row],[المدة المتبقية على انتهاء رخصة السير]]=\"\",\"\",\"😁\")))","v":""},"03/02/1439",{"$f":"IFERROR(ConvertDate(Truck_New18[[#This Row],[تاريخ انتهاء كارت التشغيل (هجري)]]),\"\")","v":"23/10/2017"},{"$f":"IF(Truck_New18[[#This Row],[المدة المتبقية على انتهاء كارت التشغيل]]<1,\"منتهي\",IF(Truck_New18[[#This Row],[المدة المتبقية على انتهاء كارت التشغيل]]<30,\"تجديد\",IF(Truck_New18[[#This Row],[المدة المتبقية على انتهاء كارت التشغيل]]=\"\",\"\",\"😁\")))","v":"منتهي"},{"$f":"Truck_New18[[#This Row],[تاريخ انتهاء التأمين (ميلادي)]]","v":"2022-02-06"},"2022-02-06",{"$f":"IFERROR(IF(Truck_New18[[#This Row],[المدة المتبيقة على انتهاء التامين]]<1,\"منتهي\",IF(Truck_New18[[#This Row],[المدة المتبيقة على انتهاء التامين]]<30,\"تجديد\",\"👌\")),\"\")","v":"منتهي"},"حادث",null,null,{"$f":"IFERROR(ConvertDate(Truck_New18[[#This Row],[تاريخ انتهاء التفويض (هجري)]]),\"\")","v":""},{"$f":"IF(Truck_New18[[#This Row],[المدة المتبقية على انتهاء التفويض]]<1,\"منتهي\",IF(Truck_New18[[#This Row],[المدة المتبقية على انتهاء التفويض]]<30,\"تجديد\",IF(Truck_New18[[#This Row],[المدة المتبقية على انتهاء التفويض]]=\"\",\"\",\"😁\")))","v":""},null,null,{"$f":"IFERROR(ConvertDate(Truck_New18[[#This Row],[انتهاء رخصة القيادة (هجري)]]),\"\")","v":""},{"$f":"IFERROR(IF(Truck_New18[[#This Row],[المدة المتبقية على انتهاء رخصة القيادة]]<1,\"منتهي\",IF(Truck_New18[[#This Row],[المدة المتبقية على انتهاء رخصة القيادة]]<30,\"تجديد\",\"😁\")),\"\")","v":"منتهي"},null,null,null,null,null,null,null,null,null,"√",{"$f":"IFERROR(Truck_New18[[#This Row],[تاريخ انتهاء الفحص (ميلادي)]]-TODAY(),\"\")","v":""},{"$f":"IFERROR(Truck_New18[[#This Row],[تاريخ انتهاء رخصة السير(ميلادي)]]-TODAY(),\"\")","v":""},{"$f":"IFERROR(Truck_New18[[#This Row],[تاريخ انتهاء كارت التشغيل (ميلادي)]]-TODAY(),\"\")","v":-1814},{"$f":"IFERROR(Truck_New18[[#This Row],[تاريخ انتهاء التأمين (ميلادي)]]-TODAY(),\"\")","v":-247},{"$f":"IFERROR(Truck_New18[[#This Row],[انتهاء رخصة القيادة (هجري)]]-TODAY(),\"\")","v":-44845},{"$f":"IFERROR(Truck_New18[[#This Row],[تاريخ انتهاء التفويض (ميلادي)]]-TODAY(),\"\")","v":""}]
[{"$f":"IF(B41=\"\",\"\",SUBTOTAL(3,$B$3:B41))","v":39},"RC2","مرسيدس / شاحنة عادي","Mercedes",1990,"بيج",7009429445,"ا ا هـ    1986","WDB65813915542980",427358400,"نقل عام","04/1441",{"$f":"IFERROR(ConvertDate(Truck_New18[[#This Row],[تاريخ انتهاء الفحص (هجري)]]),\"\")","v":"28/11/2019"},{"$f":"IF(Truck_New18[[#This Row],[المدة المتبقية على انتهاء الفحص]]<1,\"منتهي\",IF(Truck_New18[[#This Row],[المدة المتبقية على انتهاء الفحص]]<30,\"تجديد\",IF(Truck_New18[[#This Row],[المدة المتبقية على انتهاء الفحص]]=\"\",\"\",\"😁\")))","v":"منتهي"},"05/02/1442",{"$f":"IFERROR(ConvertDate(Truck_New18[[#This Row],[تاريخ انتهاء رخصة السير(هجري)]]),\"\")","v":"22/09/2020"},{"$f":"IF(Truck_New18[[#This Row],[المدة المتبقية على انتهاء رخصة السير]]<1,\"منتهي\",IF(Truck_New18[[#This Row],[المدة المتبقية على انتهاء رخصة السير]]<30,\"تجديد\",IF(Truck_New18[[#This Row],[المدة المتبقية على انتهاء رخصة السير]]=\"\",\"\",\"😁\")))","v":"منتهي"},"03/02/1439",{"$f":"IFERROR(ConvertDate(Truck_New18[[#This Row],[تاريخ انتهاء كارت التشغيل (هجري)]]),\"\")","v":"23/10/2017"},{"$f":"IF(Truck_New18[[#This Row],[المدة المتبقية على انتهاء كارت التشغيل]]<1,\"منتهي\",IF(Truck_New18[[#This Row],[المدة المتبقية على انتهاء كارت التشغيل]]<30,\"تجديد\",IF(Truck_New18[[#This Row],[المدة المتبقية على انتهاء كارت التشغيل]]=\"\",\"\",\"😁\")))","v":"منتهي"},{"$f":"Truck_New18[[#This Row],[تاريخ انتهاء التأمين (ميلادي)]]","v":"2021-02-04"},"2021-02-04",{"$f":"IFERROR(IF(Truck_New18[[#This Row],[المدة المتبيقة على انتهاء التامين]]<1,\"منتهي\",IF(Truck_New18[[#This Row],[المدة المتبيقة على انتهاء التامين]]<30,\"تجديد\",\"👌\")),\"\")","v":"منتهي"},null,null,null,{"$f":"IFERROR(ConvertDate(Truck_New18[[#This Row],[تاريخ انتهاء التفويض (هجري)]]),\"\")","v":""},{"$f":"IF(Truck_New18[[#This Row],[المدة المتبقية على انتهاء التفويض]]<1,\"منتهي\",IF(Truck_New18[[#This Row],[المدة المتبقية على انتهاء التفويض]]<30,\"تجديد\",IF(Truck_New18[[#This Row],[المدة المتبقية على انتهاء التفويض]]=\"\",\"\",\"😁\")))","v":""},null,null,{"$f":"IFERROR(ConvertDate(Truck_New18[[#This Row],[انتهاء رخصة القيادة (هجري)]]),\"\")","v":""},{"$f":"IFERROR(IF(Truck_New18[[#This Row],[المدة المتبقية على انتهاء رخصة القيادة]]<1,\"منتهي\",IF(Truck_New18[[#This Row],[المدة المتبقية على انتهاء رخصة القيادة]]<30,\"تجديد\",\"😁\")),\"\")","v":"منتهي"},null,null,null,null,null,null,null,null,null,null,{"$f":"IFERROR(Truck_New18[[#This Row],[تاريخ انتهاء الفحص (ميلادي)]]-TODAY(),\"\")","v":-1048},{"$f":"IFERROR(Truck_New18[[#This Row],[تاريخ انتهاء رخصة السير(ميلادي)]]-TODAY(),\"\")","v":-749},{"$f":"IFERROR(Truck_New18[[#This Row],[تاريخ انتهاء كارت التشغيل (ميلادي)]]-TODAY(),\"\")","v":-1814},{"$f":"IFERROR(Truck_New18[[#This Row],[تاريخ انتهاء التأمين (ميلادي)]]-TODAY(),\"\")","v":-614},{"$f":"IFERROR(Truck_New18[[#This Row],[انتهاء رخصة القيادة (هجري)]]-TODAY(),\"\")","v":-44845},{"$f":"IFERROR(Truck_New18[[#This Row],[تاريخ انتهاء التفويض (ميلادي)]]-TODAY(),\"\")","v":""}]
[{"$f":"IF(B42=\"\",\"\",SUBTOTAL(3,$B$3:B42))","v":""},null,null,null,null,null,null,null,null,null,null,null,{"$f":"IFERROR(ConvertDate(Truck_New18[[#This Row],[تاريخ انتهاء الفحص (هجري)]]),\"\")","v":""},{"$f":"IF(Truck_New18[[#This Row],[المدة المتبقية على انتهاء الفحص]]<1,\"منتهي\",IF(Truck_New18[[#This Row],[المدة المتبقية على انتهاء الفحص]]<30,\"تجديد\",IF(Truck_New18[[#This Row],[المدة المتبقية على انتهاء الفحص]]=\"\",\"\",\"😁\")))","v":""},null,{"$f":"IFERROR(ConvertDate(Truck_New18[[#This Row],[تاريخ انتهاء رخصة السير(هجري)]]),\"\")","v":""},{"$f":"IF(Truck_New18[[#This Row],[المدة المتبقية على انتهاء رخصة السير]]<1,\"منتهي\",IF(Truck_New18[[#This Row],[المدة المتبقية على انتهاء رخصة السير]]<30,\"تجديد\",IF(Truck_New18[[#This Row],[المدة المتبقية على انتهاء رخصة السير]]=\"\",\"\",\"😁\")))","v":""},null,{"$f":"IFERROR(ConvertDate(Truck_New18[[#This Row],[تاريخ انتهاء كارت التشغيل (هجري)]]),\"\")","v":""},{"$f":"IF(Truck_New18[[#This Row],[المدة المتبقية على انتهاء كارت التشغيل]]<1,\"منتهي\",IF(Truck_New18[[#This Row],[المدة المتبقية على انتهاء كارت التشغيل]]<30,\"تجديد\",IF(Truck_New18[[#This Row],[المدة المتبقية على انتهاء كارت التشغيل]]=\"\",\"\",\"😁\")))","v":""},{"$f":"Truck_New18[[#This Row],[تاريخ انتهاء التأمين (ميلادي)]]","v":{"$error":"#VALUE!"}},{"$f":"ConvertDate(Truck_New18[[#This Row],[تاريخ انتهاء التأمين (هجري)]])","v":{"$error":"#VALUE!"}},{"$f":"IFERROR(IF(Truck_New18[[#This Row],[المدة المتبيقة على انتهاء التامين]]<1,\"منتهي\",IF(Truck_New18[[#This Row],[المدة المتبيقة على انتهاء التامين]]<30,\"تجديد\",\"👌\")),\"\")","v":"👌"},null,null,null,{"$f":"IFERROR(ConvertDate(Truck_New18[[#This Row],[تاريخ انتهاء التفويض (هجري)]]),\"\")","v":""},{"$f":"IF(Truck_New18[[#This Row],[المدة المتبقية على انتهاء التفويض]]<1,\"منتهي\",IF(Truck_New18[[#This Row],[المدة المتبقية على انتهاء التفويض]]<30,\"تجديد\",IF(Truck_New18[[#This Row],[المدة المتبقية على انتهاء التفويض]]=\"\",\"\",\"😁\")))","v":""},null,null,{"$f":"IFERROR(ConvertDate(Truck_New18[[#This Row],[انتهاء رخصة القيادة (هجري)]]),\"\")","v":""},{"$f":"IFERROR(IF(Truck_New18[[#This Row],[المدة المتبقية على انتهاء رخصة القيادة]]<1,\"منتهي\",IF(Truck_New18[[#This Row],[المدة المتبقية على انتهاء رخصة القيادة]]<30,\"تجديد\",\"😁\")),\"\")","v":"منتهي"},null,null,null,null,null,null,null,null,null,null,{"$f":"IFERROR(Truck_New18[[#This Row],[تاريخ انتهاء الفحص (ميلادي)]]-TODAY(),\"\")","v":""},{"$f":"IFERROR(Truck_New18[[#This Row],[تاريخ انتهاء رخصة السير(ميلادي)]]-TODAY(),\"\")","v":""},{"$f":"IFERROR(Truck_New18[[#This Row],[تاريخ انتهاء كارت التشغيل (ميلادي)]]-TODAY(),\"\")","v":""},{"$f":"IFERROR(Truck_New18[[#This Row],[تاريخ انتهاء التأمين (ميلادي)]]-TODAY(),\"\")","v":""},{"$f":"IFERROR(Truck_New18[[#This Row],[انتهاء رخصة القيادة (هجري)]]-TODAY(),\"\")","v":-44845},{"$f":"IFERROR(Truck_New18[[#This Row],[تاريخ انتهاء التفويض (ميلادي)]]-TODAY(),\"\")","v":""}]
[{"$f":"IF(B43=\"\",\"\",SUBTOTAL(3,$B$3:B43))","v":""},null,null,null,null,null,null,null,null,null,null,null,{"$f":"IFERROR(ConvertDate(Truck_New18[[#This Row],[تاريخ انتهاء الفحص (هجري)]]),\"\")","v":""},{"$f":"IF(Truck_New18[[#This Row],[المدة المتبقية على انتهاء الفحص]]<1,\"منتهي\",IF(Truck_New18[[#This Row],[المدة المتبقية على انتهاء الفحص]]<30,\"تجديد\",IF(Truck_New18[[#This Row],[المدة المتبقية على انتهاء الفحص]]=\"\",\"\",\"😁\")))","v":""},null,{"$f":"IFERROR(ConvertDate(Truck_New18[[#This Row],[تاريخ انتهاء رخصة السير(هجري)]]),\"\")","v":""},{"$f":"IF(Truck_New18[[#This Row],[المدة المتبقية على انتهاء رخصة السير]]<1,\"منتهي\",IF(Truck_New18[[#This Row],[المدة المتبقية على انتهاء رخصة السير]]<30,\"تجديد\",IF(Truck_New18[[#This Row],[المدة المتبقية على انتهاء رخصة السير]]=\"\",\"\",\"😁\")))","v":""},null,{"$f":"IFERROR(ConvertDate(Truck_New18[[#This Row],[تاريخ انتهاء كارت التشغيل (هجري)]]),\"\")","v":""},{"$f":"IF(Truck_New18[[#This Row],[المدة المتبقية على انتهاء كارت التشغيل]]<1,\"منتهي\",IF(Truck_New18[[#This Row],[المدة المتبقية على انتهاء كارت التشغيل]]<30,\"تجديد\",IF(Truck_New18[[#This Row],[المدة المتبقية على انتهاء كارت التشغيل]]=\"\",\"\",\"😁\")))","v":""},{"$f":"Truck_New18[[#This Row],[تاريخ انتهاء التأمين (ميلادي)]]","v":{"$error":"#VALUE!"}},{"$f":"ConvertDate(Truck_New18[[#This Row],[تاريخ انتهاء التأمين (هجري)]])","v":{"$error":"#VALUE!"}},{"$f":"IFERROR(IF(Truck_New18[[#This Row],[المدة المتبيقة على انتهاء التامين]]<1,\"منتهي\",IF(Truck_New18[[#This Row],[المدة المتبيقة على انتهاء التامين]]<30,\"تجديد\",\"👌\")),\"\")","v":"👌"},null,null,null,{"$f":"IFERROR(ConvertDate(Truck_New18[[#This Row],[تاريخ انتهاء التفويض (هجري)]]),\"\")","v":""},{"$f":"IF(Truck_New18[[#This Row],[المدة المتبقية على انتهاء التفويض]]<1,\"منتهي\",IF(Truck_New18[[#This Row],[المدة المتبقية على انتهاء التفويض]]<30,\"تجديد\",IF(Truck_New18[[#This Row],[المدة المتبقية على انتهاء التفويض]]=\"\",\"\",\"😁\")))","v":""},null,null,{"$f":"IFERROR(ConvertDate(Truck_New18[[#This Row],[انتهاء رخصة القيادة (هجري)]]),\"\")","v":""},{"$f":"IFERROR(IF(Truck_New18[[#This Row],[المدة المتبقية على انتهاء رخصة القيادة]]<1,\"منتهي\",IF(Truck_New18[[#This Row],[المدة المتبقية على انتهاء رخصة القيادة]]<30,\"تجديد\",\"😁\")),\"\")","v":"منتهي"},null,null,null,null,null,null,null,null,null,null,{"$f":"IFERROR(Truck_New18[[#This Row],[تاريخ انتهاء الفحص (ميلادي)]]-TODAY(),\"\")","v":""},{"$f":"IFERROR(Truck_New18[[#This Row],[تاريخ انتهاء رخصة السير(ميلادي)]]-TODAY(),\"\")","v":""},{"$f":"IFERROR(Truck_New18[[#This Row],[تاريخ انتهاء كارت التشغيل (ميلادي)]]-TODAY(),\"\")","v":""},{"$f":"IFERROR(Truck_New18[[#This Row],[تاريخ انتهاء التأمين (ميلادي)]]-TODAY(),\"\")","v":""},{"$f":"IFERROR(Truck_New18[[#This Row],[انتهاء رخصة القيادة (هجري)]]-TODAY(),\"\")","v":-44845},{"$f":"IFERROR(Truck_New18[[#This Row],[تاريخ انتهاء التفويض (ميلادي)]]-TODAY(),\"\")","v":""}]
[{"$f":"SUBTOTAL(103,Truck_New18[م])","v":0},null,{"$f":"SUBTOTAL(103,Truck_New18[وصف الأصل])","v":39},{"$f":"SUBTOTAL(103,Truck_New18[الماركة])","v":39},{"$f":"SUBTOTAL(103,Truck_New18[الموديل])","v":39},{"$f":"SUBTOTAL(103,Truck_New18[اللون])","v":39},{"$f":"SUBTOTAL(103,Truck_New18[المالك])","v":39},{"$f":"SUBTOTAL(103,Truck_New18[رقم اللوحة])","v":39},{"$f":"SUBTOTAL(103,Truck_New18[رقم الشاسية/الهيكل])","v":39},{"$f":"SUBTOTAL(103,Truck_New18[الرقم التسلسلي])","v":39},{"$f":"SUBTOTAL(103,Truck_New18[نوع الترخيص])","v":39},{"$f":"SUBTOTAL(103,Truck_New18[تاريخ انتهاء الفحص (هجري)])","v":37},{"$f":"SUBTOTAL(103,Truck_New18[تاريخ انتهاء الفحص (ميلادي)])","v":41},{"$f":"SUBTOTAL(103,Truck_New18[حالة الفحص الدوري])","v":41},{"$f":"SUBTOTAL(103,Truck_New18[تاريخ انتهاء رخصة السير(هجري)])","v":38},{"$f":"SUBTOTAL(103,Truck_New18[تاريخ انتهاء رخصة السير(ميلادي)])","v":41},{"$f":"SUBTOTAL(103,Truck_New18[حالة رخص السير])","v":41},{"$f":"SUBTOTAL(103,Truck_New18[تاريخ انتهاء كارت التشغيل (هجري)])","v":35},{"$f":"SUBTOTAL(103,Truck_New18[تاريخ انتهاء كارت التشغيل (ميلادي)])","v":41},{"$f":"SUBTOTAL(103,Truck_New18[حالة كارت التشغيل])","v":41},{"$f":"SUBTOTAL(103,Truck_New18[تاريخ انتهاء التأمين (هجري)])","v":42},{"$f":"SUBTOTAL(103,Truck_New18[تاريخ انتهاء التأمين (ميلادي)])","v":42},{"$f":"SUBTOTAL(103,Truck_New18[حالة التأمين])","v":42},{"$f":"SUBTOTAL(103,Truck_New18[اسم المفوض بالاستخدام])","v":30},{"$f":"SUBTOTAL(103,Truck_New18[الجنسية])","v":27},{"$f":"SUBTOTAL(103,Truck_New18[تاريخ انتهاء التفويض (هجري)])","v":6},null,{"$f":"SUBTOTAL(103,Truck_New18[حالة التفويض])","v":41},{"$f":"SUBTOTAL(103,Truck_New18[رقم الإقامة])","v":14},null,null,null,{"$f":"SUBTOTAL(103,Truck_New18[رقم الجوال])","v":23},{"$f":"SUBTOTAL(103,Truck_New18[جهاز التتبع])","v":12},{"$f":"SUBTOTAL(103,Truck_New18[الحمولة])","v":0},{"$f":"SUBTOTAL(103,Truck_New18[حساس الوزن])","v":0},{"$f":"SUBTOTAL(103,Truck_New18[الموقع])","v":33},{"$f":"SUBTOTAL(103,Truck_New18[ملاحظات])","v":4},null,null,null,null,{"$f":"SUBTOTAL(103,Truck_New18[المدة المتبقية على انتهاء الفحص])","v":41},{"$f":"SUBTOTAL(103,Truck_New18[المدة المتبقية على انتهاء رخصة السير])","v":41},{"$f":"SUBTOTAL(103,Truck_New18[المدة المتبقية على انتهاء كارت التشغيل])","v":41},{"$f":"SUBTOTAL(103,Truck_New18[المدة المتبيقة على انتهاء التامين])","v":42},{"$f":"SUBTOTAL(103,Truck_New18[المدة المتبقية على انتهاء رخصة القيادة])","v":41},{"$f":"SUBTOTAL(103,Truck_New18[المدة المتبقية على انتهاء التفويض])","v":41}]
[]
[]
[]
[]
[]
[]
[]
[null,null,null,null,null,null,null,"ذ"]